Workbook

Sheet ANEXO II
F2: PARCIAL ( )
C3: RELATÓRIO DE EXECUÇÃO DA RECEITA E DESPESA
C4: ANEXO II | F4: FINAL ( X )
A7: NOME DO PROJETO: A COLEÇÃO - COLETÂNEA DE OBRAS DE ARTE DE ARTISTAS BRASILEIROS | F7: N.º PRONAC: 164867
A8: PROPONENTE: INSTITUTO OLGA KOS DE INCLUSÃO CULTURAL
A9: RECEITA | C9: VALOR | D9: ITEM ORÇAMENTARIO | F9: VALOR TOTAL DAS DESPESAS NO ITEM
D10: =CONCATENATE('itens projetos'!A5,".",'itens projetos'!B5) -> 1.Coordenação geral | F10: =+'itens projetos'!I5 -> 5000
D11: =CONCATENATE('itens projetos'!A6,".",'itens projetos'!B6) -> 2.Fotografia Artística (Fotógrafo, Tratamento, Revelação, etc.) | F11: =+'itens projetos'!I6 -> 15000
D12: =CONCATENATE('itens projetos'!A7,".",'itens projetos'!B7) -> 3.Coordenação Editorial | F12: =+'itens projetos'!I7 -> 15000
D13: =CONCATENATE('itens projetos'!A8,".",'itens projetos'!B8) -> 4.Coordenação Gráfica | F13: =+'itens projetos'!I8 -> 5000
D14: =CONCATENATE('itens projetos'!A9,".",'itens projetos'!B9) -> 5.Correios | F14: =+'itens projetos'!I9 -> 0
D15: =CONCATENATE('itens projetos'!A10,".",'itens projetos'!B10) -> 6.Direitos Autorais | F15: =+'itens projetos'!I10 -> 0
D16: =CONCATENATE('itens projetos'!A11,".",'itens projetos'!B11) -> 7.Ficha Catalográfica e ISBN | F16: =+'itens projetos'!I11 -> 0
D17: =CONCATENATE('itens projetos'!A12,".",'itens projetos'!B12) -> 8.Gravação de Vozes | F17: =+'itens projetos'!I12 -> 0
D18: =CONCATENATE('itens projetos'!A13,".",'itens projetos'!B13) -> 9.Impressão | F18: =+'itens projetos'!I13 -> 141000
D19: =CONCATENATE('itens projetos'!A14,".",'itens projetos'!B14) -> 10.Revisão de Texto | F19: =+'itens projetos'!I14 -> 0
D20: =CONCATENATE('itens projetos'!A15,".",'itens projetos'!B15) -> 11.Tradução | F20: =+'itens projetos'!I15 -> 0
D21: =CONCATENATE('itens projetos'!A16,".",'itens projetos'!B16) -> 12.Assessor de imprensa | F21: =+'itens projetos'!I16 -> 7000
D22: =CONCATENATE('itens projetos'!A17,".",'itens projetos'!B17) -> 13.Confecção de Convites | F22: =+'itens projetos'!I17 -> 0
D23: =CONCATENATE('itens projetos'!A18,".",'itens projetos'!B18) -> 14.Estandartes / Banners | F23: =+'itens projetos'!I18 -> 0
D24: =CONCATENATE('itens projetos'!A19,".",'itens projetos'!B19) -> 15.Folders | F24: =+'itens projetos'!I19 -> 0
D25: =CONCATENATE('itens projetos'!A20,".",'itens projetos'!B20) -> 16.Fotografia Artística (Fotógrafo, Tratamento, Revelação, etc.) | F25: =+'itens projetos'!I20 -> 0
D26: =CONCATENATE('itens projetos'!A21,".",'itens projetos'!B21) -> 17.Mídia impressa | F26: =+'itens projetos'!I21 -> 0
D27: =CONCATENATE('itens projetos'!A22,".",'itens projetos'!B22) -> 18.Sítio de Internet - Design e criação | F27: =+'itens projetos'!I22 -> 600
D28: =CONCATENATE('itens projetos'!A23,".",'itens projetos'!B23) -> 19.Curadoria | F28: =+'itens projetos'!I23 -> 8000
D29: =CONCATENATE('itens projetos'!A24,".",'itens projetos'!B24) -> 20.Embalagem e acondicionamento para a exposição | F29: =+'itens projetos'!I24 -> 0
D30: =CONCATENATE('itens projetos'!A25,".",'itens projetos'!B25) -> 21.Locação de Equipamento de projeção | F30: =+'itens projetos'!I25 -> 0
D31: =CONCATENATE('itens projetos'!A26,".",'itens projetos'!B26) -> 22.Montador | F31: =+'itens projetos'!I26 -> 0
D32: =CONCATENATE('itens projetos'!A27,".",'itens projetos'!B27) -> 23.Projeto de Comunicação Visual | F32: =+'itens projetos'!I27 -> 0
D33: =CONCATENATE('itens projetos'!A28,".",'itens projetos'!B28) -> 24.Adesivos | F33: =+'itens projetos'!I28 -> 0
D34: =CONCATENATE('itens projetos'!A29,".",'itens projetos'!B29) -> 25.Assistente de produção | F34: =+'itens projetos'!I29 -> 0
D35: =CONCATENATE('itens projetos'!A30,".",'itens projetos'!B30) -> 26.Impressão em braile | F35: =+'itens projetos'!I30 -> 0
D36: =CONCATENATE('itens projetos'!A31,".",'itens projetos'!B31) -> 27.Limpeza final | F36: =+'itens projetos'!I31 -> 0
D37: =CONCATENATE('itens projetos'!A32,".",'itens projetos'!B32) -> 28.Locação de Espaço para Exposição | F37: =+'itens projetos'!I32 -> 0
D38: =CONCATENATE('itens projetos'!A33,".",'itens projetos'!B33) -> 29.Locação de Mobiliário | F38: =+'itens projetos'!I33 -> 0
D39: =CONCATENATE('itens projetos'!A34,".",'itens projetos'!B34) -> 30.Painéis modulados | F39: =+'itens projetos'!I34 -> 0
D40: =CONCATENATE('itens projetos'!A35,".",'itens projetos'!B35) -> 31.Recepcionista | F40: =+'itens projetos'!I35 -> 0
D41: =CONCATENATE('itens projetos'!A36,".",'itens projetos'!B36) -> 32.Técnico de audiovisual | F41: =+'itens projetos'!I36 -> 0
D42: =CONCATENATE('itens projetos'!A37,".",'itens projetos'!B37) -> 33.Transporte de material | F42: =+'itens projetos'!I37 -> 0
D43: =CONCATENATE('itens projetos'!A38,".",'itens projetos'!B38) -> 34.Assessoria Jurídica (Contratos Inclusive) | F43: =+'itens projetos'!I38 -> 1500
D44: =CONCATENATE('itens projetos'!A39,".",'itens projetos'!B39) -> 35.Assistente administrativo | F44: =+'itens projetos'!I39 -> 2400
D45: =CONCATENATE('itens projetos'!A40,".",'itens projetos'!B40) -> 36.Contador | F45: =+'itens projetos'!I40 -> 2000
D46: =CONCATENATE('itens projetos'!A41,".",'itens projetos'!B41) -> 37.Material de escritório | F46: =+'itens projetos'!I41 -> 0
D47: =CONCATENATE('itens projetos'!A42,".",'itens projetos'!B42) -> 38.Remuneração para captação de recursos | F47: =+'itens projetos'!I42 -> 27200
D48: =CONCATENATE('itens projetos'!A43,".",'itens projetos'!B43) -> 39.Telefone | F48: =+'itens projetos'!I43 -> 0
A54: TOTAL DAS RECEITAS | C54: =SUM(C10:C53) -> 0 | D54: TOTAL DAS DESPESAS | F54: =SUM(F10:F53) -> 229700
A56: SALDO RECOLHIDO AO FNC | F56: =+C54-F54 -> -229700
A57: LOCAL - DATA :SÃO PAULO, | D57: - NOME E ASSINATURA DO RESPONSÁVEL: WOLF VEL KOS TRAMBUCH

Sheet ANEXO III
M1: PARCIAL ( )
E2: RELAÇÃO DE PAGAMENTOS
E3: ANEXO III | M3: FINAL ( x )
A5: NOME DO PROJETO: A COLEÇÃO - COLETÂNEA DE OBRAS DE ARTE DE ARTISTAS BRASILEIROS | M5: N.º PRONAC: 164867
A6: PROPONENTE: INSTITUTO OLGA KOS DE INCLUSÃO CULTURAL
A7: ITEM | B7: ITEM ORÇAMENTARIO | C7: FORNECEDOR | D7: C.N.P.J./C.P.F. | G7: CHEQUE/OP | H7: DATA DO DEBITO NA CONTA | I7: NUMERO DO DOC. FISCAL | J7: DATA DO DOCUMENTO FISCAL | M7: VALOR
A8: 1 | B8: 38 | C8: NATALIA MONACO E ASSOCIADOS ASSESSORIA ESPORTIVA LTDA-ME | D8: 11.292.079/0001-98 | G8: 850001 | H8: 2017-05-08 | I8: NF 0480 | J8: 2017-05-05 | M8: 27200
A9: 2 | B9: 36 | C9: ATIVA CONTABIL LTDA | D9: 49.501.679/0001-91 | G9: 850002 | H9: 2017-10-06 | I9: NF 0051 | J9: 2017-09-29 | M9: 2000
A10: 3 | B10: 9 | C10: IPSIS GRÁFICA E EDITORA S/A | D10: 61.407.078/0001-10 | G10: 850003 | H10: 2017-10-16 | I10: NF 57748 | J10: 2017-10-11 | M10: 141000
A11: 4 | B11: 1 | C11: COR E TAL OFICINAS DE ARTE E EVENTOS LTDA | D11: 10.875.118/0001-17 | G11: 850004 | H11: 2017-10-24 | I11: NF 0973 | J11: 2017-10-23 | M11: 2346.25
A12: 5 | B12: 35 | C12: COR E TAL OFICINAS DE ARTE E EVENTOS LTDA | D12: 10.875.118/0001-17 | G12: 850005 | H12: 2017-10-24 | I12: NF 0974 | J12: 2017-10-23 | M12: 1126.2
A13: 6 | B13: 2 | C13: SAT 5 CENA E TAKE I PRODUÇÕES ARTISTICAS LTDA | D13: 06.181.012/0001-46 | G13: 850006 | H13: 2017-11-01 | I13: NF 0766 | J13: 2017-11-01 | M13: 15000
A14: 7 | B14: 1 | C14: COR E TAL OFICINAS DE ARTE E EVENTOS LTDA | D14: 10.875.118/0001-17 | G14: 850007 | H14: 2017-11-01 | I14: NF 0984 | J14: 2017-11-06 | M14: 2346.25
A15: 8 | B15: 35 | C15: COR E TAL OFICINAS DE ARTE E EVENTOS LTDA | D15: 10.875.118/0001-17 | G15: 850008 | H15: 2017-11-01 | I15: NF 0985 | J15: 2017-11-06 | M15: 1126.2
A16: 9 | B16: 34 | C16: BRITO RODRIGUES ADVOGADOS | D16: 07.641.544/0001-81 | G16: 850009 | H16: 2017-11-06 | I16: NF 0609 | J16: 2017-11-03 | M16: 1500
A17: 10 | G17: 850010 | M17: 6569.5
A18: 11 | G18: 850011 | M18: 7508
A19: 12 | G19: 850012 | M19: 14077.5
A20: 13 | G20: 850013 | M20: 5000
A21: 14 | G21: 850014 | M21: 55.8
A22: 15 | G22: 850015 | M22: 18
A23: 16 | G23: 850016 | M23: 116.25
A24: 17 | G24: 850017 | M24: 37.5
A25: 18 | B25: 18 | C25: GALEANO INFORMATICA LTDA- ME | D25: 15.915.752/0001-50 | G25: 850018 | H25: 2017-11-24 | I25: NF 0819 | J25: 2017-11-23 | M25: 600
A26: 19
A27: 20
A28: 21
A29: 22
A30: 23
A31: 24
A32: 25
A33: 26
A34: 27
A35: 28
A36: 29
A37: 30
A38: 31
A39: 32
A40: 33
A41: 34
A42: 35
A43: 36
A44: 37
A45: 38
A46: 39
A47: 40
A48: 41
A49: SUBTOTAL | M49: =SUM(M8:M48) -> 227627.45 | N49: -229700 | O49: =SUM(M49:N49) -> -2072.55
A50: =+'ANEXO II '!A57 -> LOCAL - DATA :SÃO PAULO, | D50: - NOME E ASSINATURA DO RESPONSÁVEL: WOLF VEL KOS TRAMBUCH
O92: IMPOSTO
A93: TOTAL | M93: =SUM(M49:M92) -> 227627.45
A94: =+A50 -> LOCAL - DATA :SÃO PAULO, | F94: NOME E ASSINATURA DO RESPONSÁVEL: WOLF VEL KOS TRAMBUCH

Sheet ANEXO IV
E3: PARCIAL ( )
C4: RELATÓRIO FISICO
C5: ANEXO IV | E5: FINAL ( X )
A8: NOME DO PROJETO: A COLEÇÃO - COLETÂNEA DE OBRAS DE ARTE DE ARTISTAS BRASILEIROS | E8: N.º PRONAC:164867
A9: PROPONENTE: INSTITUTO OLGA KOS DE INCLUSÃO CULTURAL
A11: PERÍODO :
A13: ITEM ORÇAMENTARIO | D13: QTDE. PROGRAMADO | E13: QTDE. EXECUTADA
A15: =CONCATENATE('itens projetos'!A5,".",'itens projetos'!B5) -> 1.Coordenação geral
A16: =CONCATENATE('itens projetos'!A6,".",'itens projetos'!B6) -> 2.Fotografia Artística (Fotógrafo, Tratamento, Revelação, etc.)
A17: =CONCATENATE('itens projetos'!A7,".",'itens projetos'!B7) -> 3.Coordenação Editorial
A18: =CONCATENATE('itens projetos'!A8,".",'itens projetos'!B8) -> 4.Coordenação Gráfica
A19: =CONCATENATE('itens projetos'!A9,".",'itens projetos'!B9) -> 5.Correios
A20: =CONCATENATE('itens projetos'!A10,".",'itens projetos'!B10) -> 6.Direitos Autorais
A21: =CONCATENATE('itens projetos'!A11,".",'itens projetos'!B11) -> 7.Ficha Catalográfica e ISBN
A22: =CONCATENATE('itens projetos'!A12,".",'itens projetos'!B12) -> 8.Gravação de Vozes
A23: =CONCATENATE('itens projetos'!A13,".",'itens projetos'!B13) -> 9.Impressão
A24: =CONCATENATE('itens projetos'!A14,".",'itens projetos'!B14) -> 10.Revisão de Texto
A25: =CONCATENATE('itens projetos'!A15,".",'itens projetos'!B15) -> 11.Tradução
A26: =CONCATENATE('itens projetos'!A16,".",'itens projetos'!B16) -> 12.Assessor de imprensa
A27: =CONCATENATE('itens projetos'!A17,".",'itens projetos'!B17) -> 13.Confecção de Convites
A28: =CONCATENATE('itens projetos'!A18,".",'itens projetos'!B18) -> 14.Estandartes / Banners
A29: =CONCATENATE('itens projetos'!A19,".",'itens projetos'!B19) -> 15.Folders
A30: =CONCATENATE('itens projetos'!A20,".",'itens projetos'!B20) -> 16.Fotografia Artística (Fotógrafo, Tratamento, Revelação, etc.)
A31: =CONCATENATE('itens projetos'!A21,".",'itens projetos'!B21) -> 17.Mídia impressa
A32: =CONCATENATE('itens projetos'!A22,".",'itens projetos'!B22) -> 18.Sítio de Internet - Design e criação
A33: =CONCATENATE('itens projetos'!A23,".",'itens projetos'!B23) -> 19.Curadoria
A34: =CONCATENATE('itens projetos'!A24,".",'itens projetos'!B24) -> 20.Embalagem e acondicionamento para a exposição
A35: =CONCATENATE('itens projetos'!A25,".",'itens projetos'!B25) -> 21.Locação de Equipamento de projeção
A36: =CONCATENATE('itens projetos'!A26,".",'itens projetos'!B26) -> 22.Montador
A37: =CONCATENATE('itens projetos'!A27,".",'itens projetos'!B27) -> 23.Projeto de Comunicação Visual
A38: =CONCATENATE('itens projetos'!A28,".",'itens projetos'!B28) -> 24.Adesivos
A39: =CONCATENATE('itens projetos'!A29,".",'itens projetos'!B29) -> 25.Assistente de produção
A40: =CONCATENATE('itens projetos'!A30,".",'itens projetos'!B30) -> 26.Impressão em braile
A41: =CONCATENATE('itens projetos'!A31,".",'itens projetos'!B31) -> 27.Limpeza final
A42: =CONCATENATE('itens projetos'!A32,".",'itens projetos'!B32) -> 28.Locação de Espaço para Exposição
A43: =CONCATENATE('itens projetos'!A33,".",'itens projetos'!B33) -> 29.Locação de Mobiliário
A44: =CONCATENATE('itens projetos'!A34,".",'itens projetos'!B34) -> 30.Painéis modulados
A45: =CONCATENATE('itens projetos'!A35,".",'itens projetos'!B35) -> 31.Recepcionista
A46: =CONCATENATE('itens projetos'!A36,".",'itens projetos'!B36) -> 32.Técnico de audiovisual
A47: =CONCATENATE('itens projetos'!A37,".",'itens projetos'!B37) -> 33.Transporte de material
A48: =CONCATENATE('itens projetos'!A38,".",'itens projetos'!B38) -> 34.Assessoria Jurídica (Contratos Inclusive)
A49: =CONCATENATE('itens projetos'!A39,".",'itens projetos'!B39) -> 35.Assistente administrativo
A50: =CONCATENATE('itens projetos'!A40,".",'itens projetos'!B40) -> 36.Contador
A51: =CONCATENATE('itens projetos'!A41,".",'itens projetos'!B41) -> 37.Material de escritório
A52: =CONCATENATE('itens projetos'!A42,".",'itens projetos'!B42) -> 38.Remuneração para captação de recursos
A53: =CONCATENATE('itens projetos'!A43,".",'itens projetos'!B43) -> 39.Telefone
A61: LOCAL - DATA : SÃO PAULO, | D61: NOME E ASSINATURA DO RESPONSÁVEL: WOLF VEL KOS TRAMBUCH

Sheet ANEXO V
G2: PARCIAL ( )
D3: RELATÓRIO DE BENS DE CAPITAL
D4: ANEXO V | G4: FINAL ( X )
A5: PRONAC - INCENTIVO | D5: (Se não houve aquisição, registrar “Nada Consta”)
A8: 1 – NOME DO PROJETO: A COLEÇÃO - COLETÂNEA DE OBRAS DE ARTE DE ARTISTAS BRASILEIROS | G8: N.º PRONAC: 164867
A9: 3 – PROPONENTE: INSTITUTO OLGA KOS DE INCLUSÃO CULTURAL
A11: TIPO E NUMERO DO DOC FISCAL | B11: DATA | C11: ESPECIFICAÇÃO | E11: QUANTIDADE | F11: VALOR UNITÁRIO | H11: VALOR TOTAL
A29: nada consta | B29: nada consta | C29: nada consta | E29: nada consta | F29: nada consta | H29: nada consta
A54: TOTAL :
A55: LOCAL - DATA : SÃO PAULO, | E55: - NOME E ASSINATURA DO RESPONSÁVEL: WOLF VEL KOS TRAMBUCH

Sheet ANEXO VI
H2: PARCIAL ( )
C4: RELATÓRIO DE BENS IMÓVEIS
C5: ANEXO VI | H5: FINAL (X )
C6: (Se não houve aquisição, registrar “Nada Consta”)
A8: NOME DO PROJETO:A COLEÇÃO - COLETÂNEA DE OBRAS DE ARTE DE ARTISTAS BRASILEIROS | H8: N.º PRONAC: 164867
A9: PROPONENTE: INSTITUTO OLGA KOS DE INCLUSÃO CULTURAL
F10: CARTÓRIO DE REGISTRO | G10: NÚMERO REGISTRO
A11: ITEM | B11: ESPECIFICAÇÃO | E11: SITUAÇÃO | I11: VALOR R$
A26: NADA CONSTA | B26: NADA CONSTA | E26: NADA CONSTA | F26: NADA CONSTA | G26: NADA CONSTA | I26: NADA CONSTA
A36: TOTAL ............
A38: LOCAL - DATA : SÃO PAULO, | D38: - NOME E ASSINATURA DO RESPONSÁVEL: Wolf Vel Kos Trambuch

Sheet ANEXO VII
C2: CONCILIAÇÃO BANCÁRIA | E2: PARCIAL ( )
C3: ANEXO VII | E3: FINAL ( X )
A5: NOME DO PROJETO: A COLEÇÃO - COLETÂNEA DE OBRAS DE ARTE DE ARTISTAS BRASILEIROS | E5: PRONAC N°: 164867
A6: PROPONENTE: INSTITUTO OLGA KOS DE INCLUSÃO CULTURAL
A7: BANCO: Banco do Brasil | B7: AGÊNCIA: 6998-1 | C7: CONTA CAPTAÇÃO: 7650-3 | D7: CONTA MOVIMENTO: 7651-1
A9: ITEM | E9: VALOR (R$)
A10: TOTAL CAPTADO | E10: =SUM('ANEXO II '!C10:C34) -> 0
A11: TOTAL DE RENDIMENTOS DE APLICAÇÃO FINANCEIRAS | E11: =+'ANEXO II '!C34 -> 0
A12: TOTAL DE DESPESAS | E12: =+'ANEXO II '!F54 -> 229700
A13: TOTAL RECOLHIDO AO FNC | E13: =+E10-E12 -> -229700
A14: SALDO ATUAL | E14: 0
A16: LOCAL - DATA : SÃO PAULO, 10 DE AGOSTO DE 2016 | C16: NOME E ASSINATURA DO RESPONSÁVEL: WOLF VEL KOS TRAMBUCH
A18: Obs.: A este formulario dever ser anexados os extratos bancarios de todos os meses do prazo do projeto de de aplicações financeiras em ordem cronologica

Sheet APLICAÇÕES
A1: conta bloqueio | B1: 7650-3 | E1: conta movimento
A2: composição aplicação conta bloqueio | E2: composição aplicação conta movimento | F2: 7651-1 | I2: TARIFAS
A3: data | B3: valor | E3: data | F3: valor
E4: MAIO | F4: 1033.81
E5: JUNHO | F5: 1168.45
E6: JULHO | F6: 1147.82
E7: AGOSTO | F7: 1075.7
E8: SETEMBRO | F8: 802.82
E9: OUTUBRO | F9: -85.66
E10: NOVEMBRO | F10: -291.95
A22: TOTAL: | B22: =SUM(B7:B13) -> 0 | E22: TOTAL: | F22: =SUM(F4:F16) -> 4850.99
B26: =+B24-B22 -> 0
E27: BRUTO
E50: SAIDA INDEVIDA - VALOR RESTITUIDO - CONTRAPARTIDA
E51: SAIDA INDEVIDA - VALOR RESTITUIDO - CONTRAPARTIDA
E52: SAIDA INDEVIDA - VALOR RESTITUIDO - CONTRAPARTIDA
E54: SAIDA INDEVIDA - VALOR RESTITUIDO - CONTRAPARTIDA
E58: SAIDA INDEVIDA - VALOR RESTITUIDO - CONTRAPARTIDA
E64: SAIDA INDEVIDA - VALOR RESTITUIDO - CONTRAPARTIDA
E86: SAIDA INDEVIDA - VALOR RESTITUIDO - CONTRAPARTIDA
H92: 850284
H93: 2014-04-17
E104: SAIDA INDEVIDA - VALOR RESTITUIDO - CONTRAPARTIDA
E105: SAIDA INDEVIDA - VALOR RESTITUIDO - CONTRAPARTIDA

Sheet deposito
B3: DEPOSITO | I3: ESTORNOS OU DEVOLUÇÕES
A5: Data | B5: Histórico | C5: valor | H5: Data | I5: Histórico | J5: valor | L5: CANCELADOS
C42: =SUM(C6:C37) -> 0 | J42: =SUM(J6:J21) -> 0 | L42: =+J42+C42 -> 0
H69: 850284
H70: 2014-04-17

Sheet OFICIAL
A1: A COLEÇÃO - COLETÂNEA DE OBRAS DE ARTE DE ARTISTAS BRASILEIROS
A2: Incentivo Fiscal Federal
A3: Livro
A4: 1 - Pré-Produção / Preparação
A5: SP - São Paulo
B6: ITEM | C6: DIAS | D6: QTDE | E6: OCOR. | F6: VL. UNITÁRIO | G6: VL. SOLICITADO | H6: JUSTIF. DO PROPONENTE | I6: Unid
A7: 1 | B7: Coordenação geral | C7: 210 | D7: 1 | E7: 7 | F7: 2500 | G7: =E7*F7 -> 17500 | H7: Coordenação Geral do Projeto articulação e mediação das relações com o artista, consultores e fornecedores | I7: Mês
A8: 2 | B8: Fotografia Artística (Fotógrafo, Tratamento, Revelação, etc.) | C8: 30 | D8: 1 | E8: 1 | F8: 15000 | G8: =E8*F8 -> 15000 | H8: Contratação de Fotografo para as fotos de obras do acervo para colocar no livro, serão aproximadamente 60 fotos. | I8: Verba
A9: Total da UF | G9: =SUM(G7:G8) -> 32500
A10: Total da Etapa | G10: =G9 -> 32500
A11: 2 - Produção / Execução
A12: SP - São Paulo
B13: ITEM | C13: DIAS | D13: QTDE | E13: OCOR. | F13: VL. UNITÁRIO | G13: VL. SOLICITADO | H13: JUSTIF. DO PROPONENTE | I13: Unid
A14: 3 | B14: Coordenação Editorial | C14: 120 | D14: 1 | E14: 1 | F14: 15000 | G14: =E14*F14*D14 -> 15000 | H14: Coordenação Editorial do Livro | I14: Serviço
A15: 4 | B15: Coordenação Gráfica | C15: 120 | D15: 1 | E15: 1 | F15: 5000 | G15: 5000 | H15: Coordenação de produção gráfica do Livro | I15: Serviço
A16: 5 | B16: Correios | C16: 60 | D16: 1 | E16: 1 | F16: 3500 | G16: 3500 | H16: Para envio de Livro | I16: Serviço
A17: 6 | B17: Direitos Autorais | C17: 30 | D17: 1 | E17: 1 | F17: 32446.8 | G17: 32446.8 | H17: Direitos autorais sobre a obra produzida | I17: Serviço
A18: 7 | B18: Ficha Catalográfica e ISBN | C18: 30 | D18: 1 | E18: 1 | F18: 160 | G18: 160 | I18: Serviço
A19: 8 | B19: Gravação de Vozes | C19: 45 | D19: 1 | E19: 1 | F19: 9878 | G19: 9878 | H19: Para disponibilizar o produto principal (livro) em formato audiolivro para acesso gratuito do público interessado, em link no site do Instituto Olga Kos. Haverá narração em português, do conteúdo constante na obra escrita a fim de permitir a fruição do trabalho por parte do público com dificuldade em acessar o livro em seu formato original. | I19: Verba
A20: 9 | B20: Impressão | C20: 30 | D20: 3000 | E20: 1 | F20: 47 | G20: 141000 | H20: Impressão de 3.000 exemplares de Livro. | I20: Serviço
A21: 10 | B21: Revisão de Texto | C21: 60 | D21: 60 | E21: 1 | F21: 18 | G21: 1080 | H21: Revisão de Texto para o Livro | I21: Folha
A22: 11 | B22: Tradução | C22: 30 | D22: 1 | E22: 1 | F22: 3500 | G22: 3500 | H22: Tradução dos Textos do Livro para o Inglês. | I22: Serviço
A23: Total da UF | G23: =SUM(G14:G22) -> 211564.8
A24: Total da Etapa | G24: =G23 -> 211564.8
A25: 3 - Divulgação / Comercialização
A26: SP - São Paulo
B27: ITEM | C27: DIAS | D27: QTDE | E27: OCOR. | F27: VL. UNITÁRIO | G27: VL. SOLICITADO | H27: JUSTIF. DO PROPONENTE | I27: Unid
A28: 12 | B28: Assessor de imprensa | C28: 120 | D28: 1 | E28: 1 | F28: 7000 | G28: =D28*E28*F28 -> 7000 | H28: Assessoria de Imprensa para todo o projeto, divulgação criação de pautas e releases. | I28: Mês
A29: 13 | B29: Confecção de Convites | C29: 30 | D29: 3000 | E29: 1 | F29: 1.5 | G29: 4500 | H29: Confecção de Convites para o lançamento do Livro e exposição das obras de arte. | I29: Serviço
A30: 14 | B30: Estandartes / Banners | C30: 15 | D30: 5 | E30: 1 | F30: 350 | G30: 1750 | H30: Confecção de banners para o local do lançamento do livro e exposição de arte, para divulgação de logomarcas do Ministério da Cultura e Patrocinadores. | I30: Unidade
A31: 15 | B31: Folders | C31: 30 | D31: 2000 | E31: 1 | F31: 2.5 | G31: 5000 | H31: Para Divulgação do Projeto e Lançamento do Livro. | I31: Unidade
A32: 16 | B32: Fotografia Artística (Fotógrafo, Tratamento, Revelação, etc.) | C32: 1 | D32: 1 | E32: 1 | F32: 2500 | G32: 2500 | H32: Contratação de fotógrafos para registro do evento de lançamento do livro e exposição. | I32: Serviço
A33: 17 | B33: Mídia impressa | C33: 3 | D33: 1 | E33: 1 | F33: 19000 | G33: 19000 | H33: Anuncio no jornal de grande circulação e 1/4 de página sobre o lançamento do livro. | I33: Verba
A34: 18 | B34: Sítio de Internet - Design e criação | C34: 180 | D34: 6 | E34: 1 | F34: 600 | G34: 3600 | H34: Criação e Manutenção de página do projeto no site do Instituto Olga Kos: www.insitutoolgakos.org.br | I34: mês
A35: Total da UF | G35: =SUM(G28:G34) -> 43350
A36: Total da Etapa | G36: =G35 -> 43350
A37: Total da Livro | G37: =G36+G24+G10 -> 287414.8
A38: Exposição de Artes
A39: 1 - Pré-Produção / Preparação
A40: SP - São Paulo
B41: ITEM | C41: DIAS | D41: QTDE | E41: OCOR. | F41: VL. UNITÁRIO | G41: VL. SOLICITADO | H41: JUSTIF. DO PROPONENTE | I41: Unid
A42: 19 | B42: Curadoria | C42: 60 | D42: 1 | E42: 1 | F42: 8000 | G42: =D42*E42*F42 -> 8000 | H42: Curadoria para montagem da exposição. | I42: Serviço
A43: 20 | B43: Embalagem e acondicionamento para a exposição | C43: 60 | D43: 1 | E43: 2 | F43: 1900 | G43: =D43*E43*F43 -> 3800 | I43: Serviço
A44: 21 | B44: Locação de Equipamento de projeção | C44: 1 | D44: 1 | E44: 1 | F44: 2500 | G44: =D44*E44*F44 -> 2500 | I44: Serviço
A45: 22 | B45: Montador | C45: 2 | D45: 2 | E45: 2 | F45: 730 | G45: =D45*E45*F45 -> 2920 | I45: Dia
A46: 23 | B46: Projeto de Comunicação Visual | C46: 30 | D46: 1 | E46: 1 | F46: 4000 | G46: =D46*E46*F46 -> 4000 | I46: Verba
A47: Total da UF | G47: =SUM(G42:G46) -> 21220
A48: Total da Etapa | G48: =G47 -> 21220
A49: 2 - Produção / Execução
A50: SP - São Paulo
B51: ITEM | C51: DIAS | D51: QTDE | E51: OCOR. | F51: VL. UNITÁRIO | G51: VL. SOLICITADO | H51: JUSTIF. DO PROPONENTE | I51: Unid
A52: 24 | B52: Adesivos | C52: 1 | D52: 1 | E52: 1 | F52: 2000 | G52: =D52*E52*F52 -> 2000 | H52: Para Etiquetar Obras na Exposição | I52: Serviço
A53: 25 | B53: Assistente de produção | C53: 7 | D53: 1 | E53: 1 | F53: 1260 | G53: 1260 | I53: Dia
A54: 26 | B54: Impressão em braile | C54: 30 | D54: 1 | E54: 1 | F54: 9800 | G54: 9800 | I54: Serviço
A55: 27 | B55: Limpeza final | C55: 1 | D55: 1 | E55: 1 | F55: 500 | G55: 500 | H55: Limpeza após término da Exposição. | I55: Verba
A56: 28 | B56: Locação de Espaço para Exposição | C56: 7 | D56: 1 | E56: 1 | F56: 5000 | G56: 5000 | I56: Verba
A57: 29 | B57: Locação de Mobiliário | C57: 7 | D57: 1 | E57: 1 | F57: 3000 | G57: 3000 | I57: Verba
A58: 30 | B58: Painéis modulados | C58: 7 | D58: 1 | E58: 1 | F58: 5000 | G58: 5000 | I58: Dia
A59: 31 | B59: Recepcionista | C59: 7 | D59: 2 | E59: 1 | F59: 120 | G59: 240 | I59: Serviço
A60: 32 | B60: Técnico de audiovisual | C60: 1 | D60: 1 | E60: 1 | F60: 600 | G60: 600 | I60: Serviço
A61: 33 | B61: Transporte de material | C61: 2 | D61: 1 | E61: 2 | F61: 1900 | G61: 3800 | I61: Serviço
A62: Total da UF | G62: =SUM(G52:G61) -> 31200
A63: Total da Etapa | G63: =G62 -> 31200
A64: Total da Exposição de Artes | G64: =G63+G48 -> 52420
A65: Administração do Projeto
A66: 4 - Custos / Administrativos
A67: SP - São Paulo
B68: ITEM | C68: DIAS | D68: QTDE | E68: OCOR. | F68: VL. UNITÁRIO | G68: VL. SOLICITADO | H68: JUSTIF. DO PROPONENTE | I68: Unid
A69: 34 | B69: Assessoria Jurídica (Contratos Inclusive) | C69: 60 | D69: 1 | E69: 2 | F69: 1500 | G69: =D69*E69*F69 -> 3000 | I69: Verba
A70: 35 | B70: Assistente administrativo | C70: 180 | D70: 1 | E70: 7 | F70: 1200 | G70: =D70*E70*F70 -> 8400 | I70: Mês
A71: 36 | B71: Contador | C71: 60 | D71: 1 | E71: 2 | F71: 2000 | G71: =D71*E71*F71 -> 4000 | H71: Assessoria Contábil para todo o projeto. | I71: Serviço
A72: 37 | B72: Material de escritório | C72: 180 | D72: 1 | E72: 7 | F72: 120 | G72: =D72*E72*F72 -> 840 | I72: Mês
A73: 38 | B73: Remuneração para captação de recursos | C73: 30 | D73: 1 | E73: 1 | F73: 35691.48 | G73: 35691.48 | I73: Serviço
A74: 39 | B74: Telefone | C74: 180 | D74: 1 | E74: 7 | F74: 120 | G74: =D74*E74*F74 -> 840 | I74: Verba
A75: Total da UF | G75: =SUM(G69:G74) -> 52771.48
A76: Total da Etapa | G76: =G75 -> 52771.48
A77: Total da Administração do Projeto | G77: =G76 -> 52771.48
A78: Total do Incentivo Fiscal Federal | G78: =G37+G64+G77 -> 392606.28
A79: Total do Projeto

Sheet OFICIAL (2)
A1: A COLEÇÃO - COLETÂNEA DE OBRAS DE ARTE DE ARTISTAS BRASILEIROS
A2: Incentivo Fiscal Federal
A3: Livro
A4: 1 - Pré-Produção / Preparação
A5: SP - São Paulo
B6: ITEM | C6: DIAS | D6: QTDE | E6: OCOR. | F6: VL. UNITÁRIO | G6: VL. SOLICITADO | H6: JUSTIF. DO PROPONENTE | I6: Unid
A7: 1 | B7: Coordenação geral | C7: 210 | D7: 1 | E7: 7 | F7: 2500 | G7: =E7*F7 -> 17500 | I7: Mês
A8: 2 | B8: Fotografia Artística (Fotógrafo, Tratamento, Revelação, etc.) | C8: 30 | D8: 1 | E8: 1 | F8: 15000 | G8: =E8*F8 -> 15000 | I8: Verba
A9: 3 | B9: Coordenação Editorial | C9: 120 | D9: 1 | E9: 1 | F9: 15000 | G9: =E9*F9*D9 -> 15000 | I9: Serviço
A10: 4 | B10: Coordenação Gráfica | C10: 120 | D10: 1 | E10: 1 | F10: 5000 | G10: 5000 | I10: Serviço
A11: 5 | B11: Correios | C11: 60 | D11: 1 | E11: 1 | F11: 3500 | G11: 3500 | I11: Serviço
A12: 6 | B12: Direitos Autorais | C12: 30 | D12: 1 | E12: 1 | F12: 32446.8 | G12: 32446.8 | I12: Serviço
A13: 7 | B13: Ficha Catalográfica e ISBN | C13: 30 | D13: 1 | E13: 1 | F13: 160 | G13: 160 | I13: Serviço
A14: 8 | B14: Gravação de Vozes | C14: 45 | D14: 1 | E14: 1 | F14: 9878 | G14: 9878 | I14: Verba
A15: 9 | B15: Impressão | C15: 30 | D15: 3000 | E15: 1 | F15: 47 | G15: 141000 | I15: Serviço
A16: 10 | B16: Revisão de Texto | C16: 60 | D16: 60 | E16: 1 | F16: 18 | G16: 1080 | I16: Folha
A17: 11 | B17: Tradução | C17: 30 | D17: 1 | E17: 1 | F17: 3500 | G17: 3500 | I17: Serviço
A18: 12 | B18: Assessor de imprensa | C18: 120 | D18: 1 | E18: 1 | F18: 7000 | G18: =D18*E18*F18 -> 7000 | I18: Mês
A19: 13 | B19: Confecção de Convites | C19: 30 | D19: 3000 | E19: 1 | F19: 1.5 | G19: 4500 | I19: Serviço
A20: 14 | B20: Estandartes / Banners | C20: 15 | D20: 5 | E20: 1 | F20: 350 | G20: 1750 | I20: Unidade
A21: 15 | B21: Folders | C21: 30 | D21: 2000 | E21: 1 | F21: 2.5 | G21: 5000 | I21: Unidade
A22: 16 | B22: Fotografia Artística (Fotógrafo, Tratamento, Revelação, etc.) | C22: 1 | D22: 1 | E22: 1 | F22: 2500 | G22: 2500 | I22: Serviço
A23: 17 | B23: Mídia impressa | C23: 3 | D23: 1 | E23: 1 | F23: 19000 | G23: 19000 | I23: Verba
A24: 18 | B24: Sítio de Internet - Design e criação | C24: 180 | D24: 6 | E24: 1 | F24: 600 | G24: 3600 | I24: mês
A25: 19 | B25: Curadoria | C25: 60 | D25: 1 | E25: 1 | F25: 8000 | G25: 8000 | I25: Serviço
A26: 20 | B26: Embalagem e acondicionamento para a exposição | C26: 60 | D26: 1 | E26: 2 | F26: 1900 | G26: 3800 | I26: Serviço
A27: 21 | B27: Locação de Equipamento de projeção | C27: 1 | D27: 1 | E27: 1 | F27: 2500 | G27: 2500 | I27: Serviço
A28: 22 | B28: Montador | C28: 2 | D28: 2 | E28: 2 | F28: 730 | G28: 2920 | I28: Dia
A29: 23 | B29: Projeto de Comunicação Visual | C29: 30 | D29: 1 | E29: 1 | F29: 4000 | G29: 4000 | I29: Verba
A30: 24 | B30: Adesivos | C30: 1 | D30: 1 | E30: 1 | F30: 2000 | G30: 2000 | I30: Serviço
A31: 25 | B31: Assistente de produção | C31: 7 | D31: 1 | E31: 1 | F31: 1260 | G31: 1260 | I31: Dia
A32: 26 | B32: Impressão em braile | C32: 30 | D32: 1 | E32: 1 | F32: 9800 | G32: 9800 | I32: Serviço
A33: 27 | B33: Limpeza final | C33: 1 | D33: 1 | E33: 1 | F33: 500 | G33: 500 | I33: Verba
A34: 28 | B34: Locação de Espaço para Exposição | C34: 7 | D34: 1 | E34: 1 | F34: 5000 | G34: 5000 | I34: Verba
A35: 29 | B35: Locação de Mobiliário | C35: 7 | D35: 1 | E35: 1 | F35: 3000 | G35: 3000 | I35: Verba
A36: 30 | B36: Painéis modulados | C36: 7 | D36: 1 | E36: 1 | F36: 5000 | G36: 5000 | I36: Dia
A37: 31 | B37: Recepcionista | C37: 7 | D37: 2 | E37: 1 | F37: 120 | G37: 240 | I37: Serviço
A38: 32 | B38: Técnico de audiovisual | C38: 1 | D38: 1 | E38: 1 | F38: 600 | G38: 600 | I38: Serviço
A39: 33 | B39: Transporte de material | C39: 2 | D39: 1 | E39: 2 | F39: 1900 | G39: 3800 | I39: Serviço
A40: 34 | B40: Assessoria Jurídica (Contratos Inclusive) | C40: 60 | D40: 1 | E40: 2 | F40: 1500 | G40: 3000 | I40: Verba
A41: 35 | B41: Assistente administrativo | C41: 180 | D41: 1 | E41: 7 | F41: 1200 | G41: 8400 | I41: Mês
A42: 36 | B42: Contador | C42: 60 | D42: 1 | E42: 2 | F42: 2000 | G42: 4000 | I42: Serviço
A43: 37 | B43: Material de escritório | C43: 180 | D43: 1 | E43: 7 | F43: 120 | G43: 840 | I43: Mês
A44: 38 | B44: Remuneração para captação de recursos | C44: 30 | D44: 1 | E44: 1 | F44: 35691.48 | G44: 35691.48 | I44: Serviço
A45: 39 | B45: Telefone | C45: 180 | D45: 1 | E45: 7 | F45: 120 | G45: =D45*E45*F45 -> 840 | I45: Verba
A46: Total do Projeto | G46: =SUM(G7:G45) -> 392606.28

Sheet itens projetos
A2: (DE ARTE ) A COLEÇÃO - COLETÂNEA DE OBRAS DE ARTE DE ARTISTAS BRASILEIROS PRONAC 164867
B3: conta: 7651-1
A4: ITEM | B4: AÇÃO | C4: contabil | D4: UNIDADE | E4: QTD | F4: Duração | G4: VALOR UNITARIO | H4: TOTAL ITEM | I4: EXECUTADO | J4: DISPONIVEL | K4: EXCEDIDOS | L4: ITEM
A5: 1 | B5: Coordenação geral | D5: Mês | E5: 1 | F5: 7 | G5: 2500 | H5: 17500 | I5: =+'1.1'!B10 -> 5000 | J5: =IF(+H5-I5<0,0,H5-I5) -> 12500 | K5: =IF(+H5-I5<0,I5-J5," ") ->  | M5: 1.1
A6: 2 | B6: Fotografia Artística (Fotógrafo, Tratamento, Revelação, etc.) | D6: Verba | E6: 1 | F6: 1 | G6: 15000 | H6: 15000 | I6: =+'1.2'!B10 -> 15000 | J6: =IF(+H6-I6<0,0,H6-I6) -> 0 | K6: =IF(+H6-I6<0,I6-J6," ") ->  | M6: 1.2
A7: 3 | B7: Coordenação Editorial | D7: Serviço | E7: 1 | F7: 1 | G7: 15000 | H7: 15000 | I7: =+'1.3'!B15 -> 15000 | J7: 0 | M7: 1.3
A8: 4 | B8: Coordenação Gráfica | D8: Serviço | E8: 1 | F8: 1 | G8: 5000 | H8: 5000 | I8: =+'2.1'!B16 -> 5000 | J8: 0 | M8: 2.1
A9: 5 | B9: Correios | D9: Serviço | E9: 1 | F9: 1 | G9: 3500 | H9: 3500 | I9: =+'2.2'!B16 -> 0 | J9: 3500 | M9: 2.2
A10: 6 | B10: Direitos Autorais | D10: Serviço | E10: 1 | F10: 1 | G10: 32446.8 | H10: 32446.8 | I10: =+'2.3'!B15 -> 0 | J10: 32446.8 | M10: 2.3
A11: 7 | B11: Ficha Catalográfica e ISBN | D11: Serviço | E11: 1 | F11: 1 | G11: 160 | H11: 160 | I11: =+'2.4'!B15 -> 0 | J11: 160 | M11: 2.4
A12: 8 | B12: Gravação de Vozes | D12: Verba | E12: 1 | F12: 1 | G12: 9878 | H12: 9878 | I12: =+'2.5'!B15 -> 0 | J12: 9878 | M12: 2.5
A13: 9 | B13: Impressão | D13: Serviço | E13: 3000 | F13: 1 | G13: 47 | H13: 141000 | I13: =+'3.1'!B15 -> 141000 | J13: 0 | M13: 3.1
A14: 10 | B14: Revisão de Texto | D14: Folha | E14: 60 | F14: 1 | G14: 18 | H14: 1080 | I14: =+'3.2'!B7 -> 0 | J14: 1080 | M14: 3.2
A15: 11 | B15: Tradução | D15: Serviço | E15: 1 | F15: 1 | G15: 3500 | H15: 3500 | I15: =+'3.3'!B8 -> 0 | J15: 3500 | M15: 3.3
A16: 12 | B16: Assessor de imprensa | D16: Mês | E16: 1 | F16: 1 | G16: 7000 | H16: 7000 | I16: =+'3.4'!B16 -> 7000 | J16: 0 | M16: 3.4
A17: 13 | B17: Confecção de Convites | D17: Serviço | E17: 3000 | F17: 1 | G17: 1.5 | H17: 4500 | I17: =+'3.5'!B7 -> 0 | J17: 4500 | M17: 3.5
A18: 14 | B18: Estandartes / Banners | D18: Unidade | E18: 5 | F18: 1 | G18: 350 | H18: 1750 | I18: =+'3.6'!B7 -> 0 | J18: 1750 | M18: 3.6
A19: 15 | B19: Folders | D19: Unidade | E19: 2000 | F19: 1 | G19: 2.5 | H19: 5000 | I19: =+'3.7'!B7 -> 0 | J19: 5000 | M19: 3.7
A20: 16 | B20: Fotografia Artística (Fotógrafo, Tratamento, Revelação, etc.) | D20: Serviço | E20: 1 | F20: 1 | G20: 2500 | H20: 2500 | I20: =+'3.8'!B7 -> 0 | J20: 2500 | M20: 3.8
A21: 17 | B21: Mídia impressa | D21: Verba | E21: 1 | F21: 1 | G21: 19000 | H21: 19000 | I21: =+'3.9'!B7 -> 0 | J21: 19000 | M21: 3.9
A22: 18 | B22: Sítio de Internet - Design e criação | D22: mês | E22: 6 | F22: 1 | G22: 600 | H22: 3600 | I22: =+'3.10'!B7 -> 600 | J22: 3000 | M22: 3.10
A23: 19 | B23: Curadoria | D23: Serviço | E23: 1 | F23: 1 | G23: 8000 | H23: 8000 | I23: =+'3.11'!B11 -> 8000 | J23: 0 | M23: 3.11
A24: 20 | B24: Embalagem e acondicionamento para a exposição | D24: Serviço | E24: 1 | F24: 2 | G24: 1900 | H24: 3800 | I24: =+'3.12'!B7 -> 0 | J24: 3800 | M24: 3.12
A25: 21 | B25: Locação de Equipamento de projeção | D25: Serviço | E25: 1 | F25: 1 | G25: 2500 | H25: 2500 | I25: =+'3.13'!B16 -> 0 | J25: 2500 | M25: 3.13
A26: 22 | B26: Montador | D26: Dia | E26: 2 | F26: 2 | G26: 730 | H26: 2920 | I26: =+'4.1'!B11 -> 0 | J26: 2920 | M26: 4.1
A27: 23 | B27: Projeto de Comunicação Visual | D27: Verba | E27: 1 | F27: 1 | G27: 4000 | H27: 4000 | I27: =+'4.2'!B7 -> 0 | J27: 4000 | M27: 4.2
A28: 24 | B28: Adesivos | D28: Serviço | E28: 1 | F28: 1 | G28: 2000 | H28: 2000 | I28: =+'4.3'!B3 -> 0 | J28: 2000 | M28: 4.3
A29: 25 | B29: Assistente de produção | D29: Dia | E29: 1 | F29: 1 | G29: 1260 | H29: 1260 | I29: =+'4.10'!B20 -> 0 | J29: =IF(+H29-I29<0,0,H29-I29) -> 1260 | K29: =IF(+H29-I29<0,I29-J29," ") ->  | M29: 4.10
A30: 26 | B30: Impressão em braile | D30: Serviço | E30: 1 | F30: 1 | G30: 9800 | H30: 9800 | I30: =+'5.1'!B7 -> 0 | J30: 9800 | M30: 5.1
A31: 27 | B31: Limpeza final | D31: Verba | E31: 1 | F31: 1 | G31: 500 | H31: 500 | I31: =+'6.2'!B7 -> 0 | J31: 500 | M31: 6.2
A32: 28 | B32: Locação de Espaço para Exposição | D32: Verba | E32: 1 | F32: 1 | G32: 5000 | H32: 5000 | I32: =+'6.3'!B7 -> 0 | J32: 5000 | M32: 6.3
A33: 29 | B33: Locação de Mobiliário | D33: Verba | E33: 1 | F33: 1 | G33: 3000 | H33: 3000 | I33: =+'6.4'!B13 -> 0 | J33: 3000 | M33: 6.4
A34: 30 | B34: Painéis modulados | D34: Dia | E34: 1 | F34: 1 | G34: 5000 | H34: 5000 | I34: =+'6.5'!B20 -> 0 | J34: 5000 | M34: 6.5
A35: 31 | B35: Recepcionista | D35: Serviço | E35: 2 | F35: 1 | G35: 120 | H35: 240 | I35: =+'6.6'!B11 -> 0 | J35: 240 | M35: 6.6
A36: 32 | B36: Técnico de audiovisual | D36: Serviço | E36: 1 | F36: 1 | G36: 600 | H36: 600 | I36: =+'6.7'!B11 -> 0 | J36: 600 | M36: 6.7
A37: 33 | B37: Transporte de material | D37: Serviço | E37: 1 | F37: 2 | G37: 1900 | H37: 3800 | I37: =+'6.8'!B11 -> 0 | J37: 3800 | M37: 6.8
A38: 34 | B38: Assessoria Jurídica (Contratos Inclusive) | D38: Verba | E38: 1 | F38: 2 | G38: 1500 | H38: 3000 | I38: =+'6.9'!B11 -> 1500 | J38: 1500 | M38: 6.9
A39: 35 | B39: Assistente administrativo | D39: Mês | E39: 1 | F39: 7 | G39: 1200 | H39: 8400 | I39: =+'6.10'!B11 -> 2400 | J39: 6000 | M39: 6.10
A40: 36 | B40: Contador | D40: Serviço | E40: 1 | F40: 2 | G40: 2000 | H40: 4000 | I40: =+'1.16'!B22 -> 2000 | J40: 2000 | M40: 1.16
A41: 37 | B41: Material de escritório | D41: Mês | E41: 1 | F41: 7 | G41: 120 | H41: 840 | I41: =+'1.1projeto'!B15 -> 0 | J41: 840 | M41: 1
A42: 38 | B42: Remuneração para captação de recursos | D42: Serviço | E42: 1 | F42: 1 | G42: 35691.48 | H42: 35691.48 | I42: =+'38'!B15 -> 27200 | J42: =IF(+H42-I42<0,0,H42-I42) -> 8491.48 | K42: =IF(+H42-I42<0,I42-J42," ") -> 
A43: 39 | B43: Telefone | D43: Verba | E43: 1 | F43: 7 | G43: 120 | H43: 840 | I43: =+'39'!B15 -> 0 | J43: =IF(+H43-I43<0,0,H43-I43) -> 840 | K43: =IF(+H43-I43<0,I43-J43," ") -> 
G46: TOTAL PROJETOS | H46: =SUM(H5:H45) -> 392606.28 | I46: =SUM(I5:I45) -> 229700 | J46: =SUM(J5:J45) -> 162906.28 | K46: =SUM(K5:K45) -> 0
B50: TOTAL DO PROJETO CAPTADO
B51: PARCELA LIBERADA | D51: 272000
B52: RENDIMENTOS CONTA BLOQUEIO | J52: SALDO DISPONIVEL | K52: =+J46-K46 -> 162906.28
B53: RENDIMENTOS CONTA MOVIMENTO | D53: =+APLICAÇÕES!F22 -> 4850.99
B54: Recurso total para o projeto | D54: =SUM(D51:D53) -> 276850.99 | O54: =SUM(I47:I55)-D55 -> 0
B55: Valores depositados | D55: =+deposito!C42 -> 0
B56: DEPOSITOS DE ESTORNOS | D56: =+deposito!J42 -> 0
B57: Total creditado conta projeto | D57: =SUM(D54:D56) -> 276850.99
B58: cheques emitidos | D58: =+I71 -> -229700
B59: IMPOSTO A RECOLHER | D59: =37.5+116.25+55.8+18+120+372+225+697.5+105+325.5 -> 2072.55
B60: TARIFAS
B62: SALDO EM CONTA CORRENTE X FINANCEIRO | D62: =+D57+D58+D59-D60 -> 49223.54
D63: -49223.54
D65: =SUM(D62:D63) -> 0
G71: TOTAL CHEQUES EMITIDOS | I71: =SUM(I46:I70)*-1 -> -229700
B72: NF 0984- IR 37,50+ PCC 116,25
B73: NF 0985- IR 18+ PCC 55,80
B74: NF 0994- IR 120+ PCC 372,00
B75: NF 0993- IR 225+ PCC 697,50
B79: observações:
G82: Ultimo Cheque emitido
G83: POSIÇÃO EM | I83: .
J84: EDSON PEREIRA

Sheet 1.1
A1: =+'itens projetos'!B5 -> Coordenação geral
A2: VERBA | B2: VR. NOTA | C2: N º CHEQUE | D2: DATA DA SAÍDA | E2: DESCRIÇÃO DA SAÍDA | F2: NF | G2: DATA DA NOTA | H2: QTDADE
A3: =+'itens projetos'!H5 -> 17500 | B3: 2500 | C3: 850004 | D3: 2017-10-24 | E3: COR E TAL OFICINAS DE ARTE E EVENTOS LTDA | F3: NF 0973 | G3: 2017-10-23
B4: 2500 | C4: 850007 | D4: 2017-11-01 | E4: COR E TAL OFICINAS DE ARTE E EVENTOS LTDA | F4: NF 0984 | G4: 2017-11-06
A10: =SUM(A3:A9) -> 17500 | B10: =SUM(B3:B9) -> 5000
A11: SALDO | B11: =+A3-B10 -> 12500
A15: COTAÇÃO DE MATERIAIS E SERVIÇOS
G18: 1 - Fornecedor | I18: 2 - Fornecedor | K18: 3 - Fornecedor
A19: =+'itens projetos'!A2:L2 -> (DE ARTE ) A COLEÇÃO - COLETÂNEA DE OBRAS DE ARTE DE ARTISTAS BRASILEIROS PRONAC 164867 | G19: COR E TAL | I19: PEOLPLE | K19: BNER
G20: CNPJ: 10.875.118/0001-17 | I20: CNPJ: 13.933.022/0001-56 | K20: CNPJ: 82.344.425/0001-82
A21: QTDE | B21: UNI | C21: COD | D21: DESCRIÇÃO DO MATERIAL | G21: V. UNI | H21: V. TOTAL | I21: V. UNI | J21: V. TOTAL | K21: V. UNI | L21: V. TOTAL
A22: 6 | B22: SERVIÇOS | C22: 1 | D22: COORDENAÇÃO GERAL | G22: 3000 | H22: 18000 | I22: 3200 | J22: 19200 | K22: 3500 | L22: 21000
H23: =A23*G23 -> 0 | J23: =I23*A23 -> 0 | L23: =K23*A23 -> 0
H24: 0 | J24: 0 | L24: 0
H25: 0 | J25: 0 | L25: 0
H26: 0 | J26: 0 | L26: 0
H27: 0 | J27: 0 | L27: 0
H28: 0 | J28: 0 | L28: 0
H29: 0 | J29: 0 | L29: 0
H30: 0 | J30: 0 | L30: 0
H31: 0 | J31: 0 | L31: 0
H32: 0 | J32: 0 | L32: 0
H33: 0 | J33: 0 | L33: 0
H34: 0 | J34: 0 | L34: 0
H35: 0 | J35: 0 | L35: 0
H36: 0 | J36: 0 | L36: 0
H37: 0 | J37: 0 | L37: 0
H38: 0 | J38: 0 | L38: 0
H39: 0 | J39: 0 | L39: 0
H40: 0 | J40: 0 | L40: 0
H41: 0 | J41: 0 | L41: 0
H42: 0 | J42: 0 | L42: 0
H43: 0 | J43: 0 | L43: 0
H44: 0 | J44: 0 | L44: 0
H45: 0 | J45: 0 | L45: 0
H46: 0 | J46: 0 | L46: 0
H47: 0 | J47: 0 | L47: 0
H48: 0 | J48: 0 | L48: 0
H49: 0 | J49: 0 | L49: 0
H50: 0 | J50: 0 | L50: 0
H51: 0 | J51: 0 | L51: 0
H52: 0 | J52: 0 | L52: 0
H53: 0 | J53: 0 | L53: 0
A54: OBS:. | F54: TOTAIS | G54: =SUM(H22:H53) -> 18000 | I54: =SUM(J22:J53) -> 19200 | K54: =SUM(L22:L53) -> 21000
A56: DATA | G56: APROVADO
A57: 2016-01-04

Sheet 1.2
A1: =+'itens projetos'!B6 -> Fotografia Artística (Fotógrafo, Tratamento, Revelação, etc.)
A2: VERBA | B2: VR. NOTA | C2: N º CHEQUE | D2: DATA DA SAÍDA | E2: DESCRIÇÃO DA SAÍDA | F2: NF | G2: DATA DA NOTA | H2: QTDADE
A3: =+'itens projetos'!H6 -> 15000 | B3: 15000 | C3: 850006 | D3: 2017-11-01 | E3: SAT 5 CENA E TAKE I PRODUÇÕES ARTISTICAS LTDA | F3: NF 0766 | G3: 2017-11-01
A10: =SUM(A3:A9) -> 15000 | B10: =SUM(B3:B9) -> 15000
A11: SALDO | B11: =+A3-B10 -> 0
A17: COTAÇÃO DE MATERIAIS E SERVIÇOS
G20: 1 - Fornecedor | I20: 2 - Fornecedor | K20: 3 - Fornecedor
A21: =+'itens projetos'!A2:L2 -> (DE ARTE ) A COLEÇÃO - COLETÂNEA DE OBRAS DE ARTE DE ARTISTAS BRASILEIROS PRONAC 164867 | G21: 3a VISÃO | I21: BIT CLICK | K21: SAT 5 CENA
G22: CNPJ: 43.865.484/0001-44 | I22: CNPJ: 58.102.252/0001-01 | K22: CNPJ: 06.181.012/0001-46
A23: QTDE | B23: UNI | C23: COD | D23: DESCRIÇÃO DO MATERIAL | G23: V. UNI | H23: V. TOTAL | I23: V. UNI | J23: V. TOTAL | K23: V. UNI | L23: V. TOTAL
A24: 1 | B24: SERVIÇO | C24: 2 | D24: =+A1 -> Fotografia Artística (Fotógrafo, Tratamento, Revelação, etc.) | G24: 15000 | H24: =A24*G24 -> 15000 | I24: 16800 | J24: =I24*A24 -> 16800 | K24: 17520 | L24: =K24*A24 -> 17520
H25: =A25*G25 -> 0 | J25: =I25*A25 -> 0 | L25: =K25*A25 -> 0
H26: 0 | J26: 0 | L26: 0
H27: 0 | J27: 0 | L27: 0
H28: 0 | J28: 0 | L28: 0
H29: 0 | J29: 0 | L29: 0
H30: 0 | J30: 0 | L30: 0
H31: 0 | J31: 0 | L31: 0
H32: 0 | J32: 0 | L32: 0
H33: 0 | J33: 0 | L33: 0
H34: 0 | J34: 0 | L34: 0
H35: 0 | J35: 0 | L35: 0
H36: 0 | J36: 0 | L36: 0
H37: 0 | J37: 0 | L37: 0
H38: 0 | J38: 0 | L38: 0
H39: 0 | J39: 0 | L39: 0
H40: 0 | J40: 0 | L40: 0
H41: 0 | J41: 0 | L41: 0
H42: 0 | J42: 0 | L42: 0
H43: 0 | J43: 0 | L43: 0
H44: 0 | J44: 0 | L44: 0
H45: 0 | J45: 0 | L45: 0
H46: 0 | J46: 0 | L46: 0
H47: 0 | J47: 0 | L47: 0
H48: 0 | J48: 0 | L48: 0
H49: 0 | J49: 0 | L49: 0
H50: 0 | J50: 0 | L50: 0
H51: 0 | J51: 0 | L51: 0
H52: 0 | J52: 0 | L52: 0
H53: 0 | J53: 0 | L53: 0
H54: 0 | J54: 0 | L54: 0
H55: 0 | J55: 0 | L55: 0
A56: OBS:. | F56: TOTAIS | G56: =SUM(H24:H55) -> 15000 | I56: =SUM(J24:J55) -> 16800 | K56: =SUM(L24:L55) -> 17520
A58: DATA | G58: APROVADO
A59: 2016-01-04

Sheet 1.3
A1: =+'itens projetos'!B7 -> Coordenação Editorial
A2: VERBA | B2: VR. NOTA | C2: N º CHEQUE | D2: DATA DA SAÍDA | E2: DESCRIÇÃO DA SAÍDA | F2: NF | G2: DATA DA NOTA | H2: QTDADE
A3: =+'itens projetos'!H7 -> 15000 | B3: 15000 | C3: 850011 | D3: 2017-11-10 | E3: COR E TAL OFICINAS DE ARTE E EVENTOS LTDA | F3: NF 0993 | G3: 2017-11-13
A15: =SUM(A3:A5) -> 15000 | B15: =SUM(B3:B14) -> 15000
A16: SALDO | B16: =A15-B15 -> 0
A19: 4800 MENSAL
A20: COTAÇÃO DE MATERIAIS E SERVIÇOS
G23: 1 - Fornecedor | I23: 2 - Fornecedor | K23: 3 - Fornecedor
A24: =+'itens projetos'!A2:L2 -> (DE ARTE ) A COLEÇÃO - COLETÂNEA DE OBRAS DE ARTE DE ARTISTAS BRASILEIROS PRONAC 164867 | G24: COR E TAL | I24: KLINTOWITZ | K24: LUCKY
G25: CNPJ: 10.875.118/0001-17 | I25: CNPJ: 08.977.656/0001-70 | K25: CNPJ: 00.265.815/0001-00
A26: QTDE | B26: UNI | C26: COD | D26: DESCRIÇÃO DO MATERIAL | G26: V. UNI | H26: V. TOTAL | I26: V. UNI | J26: V. TOTAL | K26: V. UNI | L26: V. TOTAL
A27: 1 | B27: SERVIÇO | C27: 3 | D27: Coordenação Editorial | G27: 15000 | H27: =A27*G27 -> 15000 | I27: 16000 | J27: =I27*A27 -> 16000 | K27: 17000 | L27: =K27*A27 -> 17000
H28: =A28*G28 -> 0 | J28: =I28*A28 -> 0 | L28: =K28*A28 -> 0
H29: 0 | J29: 0 | L29: 0
H30: 0 | J30: 0 | L30: 0
H31: 0 | J31: 0 | L31: 0
H32: 0 | J32: 0 | L32: 0
H33: 0 | J33: 0 | L33: 0
H34: 0 | J34: 0 | L34: 0
H35: 0 | J35: 0 | L35: 0
H36: 0 | J36: 0 | L36: 0
H37: 0 | J37: 0 | L37: 0
H38: 0 | J38: 0 | L38: 0
H39: 0 | J39: 0 | L39: 0
H40: 0 | J40: 0 | L40: 0
H41: 0 | J41: 0 | L41: 0
H42: 0 | J42: 0 | L42: 0
H43: 0 | J43: 0 | L43: 0
H44: 0 | J44: 0 | L44: 0
H45: 0 | J45: 0 | L45: 0
H46: 0 | J46: 0 | L46: 0
H47: 0 | J47: 0 | L47: 0
H48: 0 | J48: 0 | L48: 0
H49: 0 | J49: 0 | L49: 0
H50: 0 | J50: 0 | L50: 0
H51: 0 | J51: 0 | L51: 0
H52: 0 | J52: 0 | L52: 0
H53: 0 | J53: 0 | L53: 0
H54: 0 | J54: 0 | L54: 0
H55: 0 | J55: 0 | L55: 0
H56: 0 | J56: 0 | L56: 0
H57: 0 | J57: 0 | L57: 0
H58: 0 | J58: 0 | L58: 0
A59: OBS:. | F59: TOTAIS | G59: =SUM(H27:H58) -> 15000 | I59: =SUM(J27:J58) -> 16000 | K59: =SUM(L27:L58) -> 17000
A61: DATA | G61: APROVADO
A62: 2016-01-04

Sheet 2.1
A1: =+'itens projetos'!B8 -> Coordenação Gráfica
A2: VERBA | B2: VR. NOTA | C2: N º CHEQUE | D2: DATA DA SAÍDA | E2: DESCRIÇÃO DA SAÍDA | F2: NF | G2: DATA DA NOTA | H2: QTDADE
A3: =+'itens projetos'!H8 -> 5000 | B3: 5000 | C3: 850012 | D3: 2017-11-10 | E3: JAIRO DE SOUZA DESIGN GRAFICO LTDA | F3: NF 0342 | G3: 2017-11-14
A16: =SUM(A3:A15) -> 5000 | B16: =SUM(B3:B15) -> 5000
A17: SALDO | B17: =A16-B16 -> 0
A20: COTAÇÃO DE MATERIAIS E SERVIÇOS
G23: 1 - Fornecedor | I23: 2 - Fornecedor | K23: 3 - Fornecedor
A24: =+'itens projetos'!A2:L2 -> (DE ARTE ) A COLEÇÃO - COLETÂNEA DE OBRAS DE ARTE DE ARTISTAS BRASILEIROS PRONAC 164867 | G24: COR E TAL | I24: GRAFICA REVELAÇÃO | K24: ZKAT
G25: CNPJ: 10.875.118/0001-17 | I25: CNPJ: 08.288.515/0001-40 | K25: CNPJ: 07.972.324/0001-30
A26: QTDE | B26: UNI | C26: COD | D26: DESCRIÇÃO DO MATERIAL | G26: V. UNI | H26: V. TOTAL | I26: V. UNI | J26: V. TOTAL | K26: V. UNI | L26: V. TOTAL
A27: 1 | C27: 4 | D27: Coordenação Gráfica | G27: 5000 | H27: 5000 | I27: 6000 | J27: 6000 | K27: 7000 | L27: 7000
H28: =A28*G28 -> 0 | J28: =I28*A28 -> 0 | L28: =K28*A28 -> 0
H29: 0 | J29: 0 | L29: 0
H30: 0 | J30: 0 | L30: 0
H31: 0 | J31: 0 | L31: 0
H32: 0 | J32: 0 | L32: 0
H33: 0 | J33: 0 | L33: 0
H34: 0 | J34: 0 | L34: 0
H35: 0 | J35: 0 | L35: 0
H36: 0 | J36: 0 | L36: 0
H37: 0 | J37: 0 | L37: 0
H38: 0 | J38: 0 | L38: 0
H39: 0 | J39: 0 | L39: 0
H40: 0 | J40: 0 | L40: 0
H41: 0 | J41: 0 | L41: 0
H42: 0 | J42: 0 | L42: 0
H43: 0 | J43: 0 | L43: 0
H44: 0 | J44: 0 | L44: 0
H45: 0 | J45: 0 | L45: 0
H46: 0 | J46: 0 | L46: 0
H47: 0 | J47: 0 | L47: 0
H48: 0 | J48: 0 | L48: 0
H49: 0 | J49: 0 | L49: 0
H50: 0 | J50: 0 | L50: 0
H51: 0 | J51: 0 | L51: 0
H52: 0 | J52: 0 | L52: 0
H53: 0 | J53: 0 | L53: 0
H54: 0 | J54: 0 | L54: 0
H55: 0 | J55: 0 | L55: 0
H56: 0 | J56: 0 | L56: 0
H57: 0 | J57: 0 | L57: 0
H58: 0 | J58: 0 | L58: 0
A59: OBS:. | F59: TOTAIS | G59: =SUM(H27:H58) -> 5000 | I59: =SUM(J27:J58) -> 6000 | K59: =SUM(L27:L58) -> 7000
A61: DATA | G61: APROVADO
A62: 2015-01-07

Sheet 2.2
A1: =+'itens projetos'!B9 -> Correios
A2: VERBA | B2: VR. NOTA | C2: N º CHEQUE | D2: DATA DA SAÍDA | E2: DESCRIÇÃO DA SAÍDA | F2: NF | G2: DATA DA NOTA | H2: QTDADE
A3: =+'itens projetos'!H9 -> 3500
A16: =SUM(A2:A15) -> 3500 | B16: =SUM(B3:B15) -> 0
A17: SALDO | B17: =A16-B16 -> 3500
A20: COTAÇÃO DE MATERIAIS E SERVIÇOS
G23: 1 - Fornecedor | I23: 2 - Fornecedor | K23: 3 - Fornecedor
A24: =+'itens projetos'!A2:L2 -> (DE ARTE ) A COLEÇÃO - COLETÂNEA DE OBRAS DE ARTE DE ARTISTAS BRASILEIROS PRONAC 164867
A26: QTDE | B26: UNI | C26: COD | D26: DESCRIÇÃO DO MATERIAL | G26: V. UNI | H26: V. TOTAL | I26: V. UNI | J26: V. TOTAL | K26: V. UNI | L26: V. TOTAL
H27: =A27*G27 -> 0 | J27: =I27*A27 -> 0 | L27: =K27*A27 -> 0
H28: =A28*G28 -> 0 | J28: =I28*A28 -> 0 | L28: =K28*A28 -> 0
H29: 0 | J29: 0 | L29: 0
H30: 0 | J30: 0 | L30: 0
H31: 0 | J31: 0 | L31: 0
H32: 0 | J32: 0 | L32: 0
H33: 0 | J33: 0 | L33: 0
H34: 0 | J34: 0 | L34: 0
H35: 0 | J35: 0 | L35: 0
H36: 0 | J36: 0 | L36: 0
H37: 0 | J37: 0 | L37: 0
H38: 0 | J38: 0 | L38: 0
H39: 0 | J39: 0 | L39: 0
H40: 0 | J40: 0 | L40: 0
H41: 0 | J41: 0 | L41: 0
H42: 0 | J42: 0 | L42: 0
H43: 0 | J43: 0 | L43: 0
H44: 0 | J44: 0 | L44: 0
H45: 0 | J45: 0 | L45: 0
H46: 0 | J46: 0 | L46: 0
H47: 0 | J47: 0 | L47: 0
H48: 0 | J48: 0 | L48: 0
H49: 0 | J49: 0 | L49: 0
H50: 0 | J50: 0 | L50: 0
H51: 0 | J51: 0 | L51: 0
H52: 0 | J52: 0 | L52: 0
H53: 0 | J53: 0 | L53: 0
H54: 0 | J54: 0 | L54: 0
H55: 0 | J55: 0 | L55: 0
H56: 0 | J56: 0 | L56: 0
H57: 0 | J57: 0 | L57: 0
H58: 0 | J58: 0 | L58: 0
A59: OBS:. | F59: TOTAIS | G59: =SUM(H27:H58) -> 0 | I59: =SUM(J27:J58) -> 0 | K59: =SUM(L27:L58) -> 0
A61: DATA | G61: APROVADO
A62: 2014-04-29

Sheet 2.3
A1: Direitos Autorais
A2: VERBA | B2: VR. NOTA | C2: N º CHEQUE | D2: DATA DA SAÍDA | E2: DESCRIÇÃO DA SAÍDA | F2: NF | G2: DATA DA NOTA | H2: QTDADE
A3: =+'itens projetos'!H10 -> 32446.8
A15: =SUM(A3:A12) -> 32446.8 | B15: =SUM(B3:B14) -> 0
A16: SALDO | B16: =A15-B15 -> 32446.8
A20: COTAÇÃO DE MATERIAIS E SERVIÇOS
G23: 1 - Fornecedor | I23: 2 - Fornecedor | K23: 3 - Fornecedor
A24: =+'itens projetos'!A2:L2 -> (DE ARTE ) A COLEÇÃO - COLETÂNEA DE OBRAS DE ARTE DE ARTISTAS BRASILEIROS PRONAC 164867 | G24: COR E TAL | I24: DEMOCRART | K24: KLINTOWITZ
G25: CNPJ : 10.875.118/0001-17 | I25: CNPJ : 11.068.000/0001-40 | K25: CNPJ : 08.977.656/0001-70
A26: QTDE | B26: UNI | C26: COD | D26: DESCRIÇÃO DO MATERIAL | G26: V. UNI | H26: V. TOTAL | I26: V. UNI | J26: V. TOTAL | K26: V. UNI | L26: V. TOTAL
A27: 1 | B27: SERVIÇO | C27: 6 | D27: Prestação de serviços com Direitos autorais | G27: 36000 | H27: =A27*G27 -> 36000 | I27: 36100 | J27: =I27*A27 -> 36100 | K27: 35232 | L27: =K27*A27 -> 35232
H28: =A28*G28 -> 0 | J28: =I28*A28 -> 0 | L28: =K28*A28 -> 0
H29: 0 | J29: 0 | L29: 0
H30: 0 | J30: 0 | L30: 0
H31: 0 | J31: 0 | L31: 0
H32: 0 | J32: 0 | L32: 0
H33: 0 | J33: 0 | L33: 0
H34: 0 | J34: 0 | L34: 0
H35: 0 | J35: 0 | L35: 0
H36: 0 | J36: 0 | L36: 0
H37: 0 | J37: 0 | L37: 0
H38: 0 | J38: 0 | L38: 0
H39: 0 | J39: 0 | L39: 0
H40: 0 | J40: 0 | L40: 0
H41: 0 | J41: 0 | L41: 0
H42: 0 | J42: 0 | L42: 0
H43: 0 | J43: 0 | L43: 0
H44: 0 | J44: 0 | L44: 0
H45: 0 | J45: 0 | L45: 0
H46: 0 | J46: 0 | L46: 0
H47: 0 | J47: 0 | L47: 0
H48: 0 | J48: 0 | L48: 0
H49: 0 | J49: 0 | L49: 0
H50: 0 | J50: 0 | L50: 0
H51: 0 | J51: 0 | L51: 0
H52: 0 | J52: 0 | L52: 0
H53: 0 | J53: 0 | L53: 0
H54: 0 | J54: 0 | L54: 0
H55: 0 | J55: 0 | L55: 0
H56: 0 | J56: 0 | L56: 0
H57: 0 | J57: 0 | L57: 0
H58: 0 | J58: 0 | L58: 0
A59: OBS:. | F59: TOTAIS | G59: =SUM(H27:H58) -> 36000 | I59: =SUM(J27:J58) -> 36100 | K59: =SUM(L27:L58) -> 35232
A61: DATA | K61: APROVADO
A62: 2016-01-04

Sheet 2.4
A1: =+'itens projetos'!B11 -> Ficha Catalográfica e ISBN
A2: VERBA | B2: VR. NOTA | C2: N º CHEQUE | D2: DATA DA SAÍDA | E2: DESCRIÇÃO DA SAÍDA | F2: NF | G2: DATA DA NOTA | H2: QTDADE
A3: =+'itens projetos'!H11 -> 160
A15: =SUM(A3:A14) -> 160 | B15: =SUM(B3:B14) -> 0
A16: SALDO | B16: =A15-B15 -> 160
A20: COTAÇÃO DE MATERIAIS E SERVIÇOS
G23: 1 - Fornecedor | I23: 2 - Fornecedor | K23: 3 - Fornecedor
A24: =+'itens projetos'!A2:L2 -> (DE ARTE ) A COLEÇÃO - COLETÂNEA DE OBRAS DE ARTE DE ARTISTAS BRASILEIROS PRONAC 164867 | G24: EGB | I24: IPSIS | K24: UPRISEPRINT
G25: CNPJ: 03.792.721/0001-70 | I25: CNPJ: 61.407.078/0001-10 | K25: CNPJ: 16.887.262/0001-50
A26: QTDE | B26: UNI | C26: COD | D26: DESCRIÇÃO DO MATERIAL | G26: V. UNI | H26: V. TOTAL | I26: V. UNI | J26: V. TOTAL | K26: V. UNI | L26: V. TOTAL
A27: 3000 | C27: 7 | D27: =+A1 -> Ficha Catalográfica e ISBN | G27: 40 | H27: =A27*G27 -> 120000 | I27: 45 | J27: =I27*A27 -> 135000 | K27: 50 | L27: =K27*A27 -> 150000
H28: =A28*G28 -> 0 | J28: =I28*A28 -> 0 | L28: =K28*A28 -> 0
H29: 0 | J29: 0 | L29: 0
H30: 0 | J30: 0 | L30: 0
H31: 0 | J31: 0 | L31: 0
H32: 0 | J32: 0 | L32: 0
H33: 0 | J33: 0 | L33: 0
H34: 0 | J34: 0 | L34: 0
H35: 0 | J35: 0 | L35: 0
H36: 0 | J36: 0 | L36: 0
H37: 0 | J37: 0 | L37: 0
H38: 0 | J38: 0 | L38: 0
H39: 0 | J39: 0 | L39: 0
H40: 0 | J40: 0 | L40: 0
H41: 0 | J41: 0 | L41: 0
H42: 0 | J42: 0 | L42: 0
H43: 0 | J43: 0 | L43: 0
H44: 0 | J44: 0 | L44: 0
H45: 0 | J45: 0 | L45: 0
H46: 0 | J46: 0 | L46: 0
H47: 0 | J47: 0 | L47: 0
H48: 0 | J48: 0 | L48: 0
H49: 0 | J49: 0 | L49: 0
H50: 0 | J50: 0 | L50: 0
H51: 0 | J51: 0 | L51: 0
H52: 0 | J52: 0 | L52: 0
H53: 0 | J53: 0 | L53: 0
H54: 0 | J54: 0 | L54: 0
H55: 0 | J55: 0 | L55: 0
H56: 0 | J56: 0 | L56: 0
H57: 0 | J57: 0 | L57: 0
H58: 0 | J58: 0 | L58: 0
A59: OBS:. | F59: TOTAIS | G59: =SUM(H27:H58) -> 120000 | I59: =SUM(J27:J58) -> 135000 | K59: =SUM(L27:L58) -> 150000
A61: DATA | G61: APROVADO
A62: 2015-03-18

Sheet 2.5
A1: =+'itens projetos'!B12 -> Gravação de Vozes
A2: VERBA | B2: VR. NOTA | C2: N º CHEQUE | D2: DATA DA SAÍDA | E2: DESCRIÇÃO DA SAÍDA | F2: NF | G2: DATA DA NOTA | H2: QTDADE
A3: =+'itens projetos'!H12 -> 9878
A15: =SUM(A3:A14) -> 9878 | B15: =SUM(B3:B14) -> 0
A16: SALDO | B16: =A15-B15 -> 9878
A19: COTAÇÃO DE MATERIAIS E SERVIÇOS
G22: 1 - Fornecedor | I22: 2 - Fornecedor | K22: 3 - Fornecedor
A23: =+'itens projetos'!A2:L2 -> (DE ARTE ) A COLEÇÃO - COLETÂNEA DE OBRAS DE ARTE DE ARTISTAS BRASILEIROS PRONAC 164867 | G23: IPSIS | I23: UP RISE | K23: GRAFICA REVELAÇÃO
G24: CNPJ: 61.407.078/0001-10 | I24: CNPJ:16.887.262/0001-50 | K24: CNPJ:08.288.515/0001-40
A25: QTDE | B25: UNI | C25: COD | D25: DESCRIÇÃO DO MATERIAL | G25: V. UNI | H25: V. TOTAL | I25: V. UNI | J25: V. TOTAL | K25: V. UNI | L25: V. TOTAL
A26: 3000 | B26: UNI | C26: 8 | D26: IMPRESSÕES | G26: 42 | H26: 126000 | I26: 43.5 | J26: 130500 | K26: 45 | L26: 135000
H29: =A29*G29 -> 0 | J29: =I29*A29 -> 0 | L29: =K29*A29 -> 0
H30: 0 | J30: 0 | L30: 0
H31: 0 | J31: 0 | L31: 0
H32: 0 | J32: 0 | L32: 0
H33: 0 | J33: 0 | L33: 0
H34: 0 | J34: 0 | L34: 0
H35: 0 | J35: 0 | L35: 0
H36: 0 | J36: 0 | L36: 0
H37: 0 | J37: 0 | L37: 0
H38: 0 | J38: 0 | L38: 0
H39: 0 | J39: 0 | L39: 0
H40: 0 | J40: 0 | L40: 0
H41: 0 | J41: 0 | L41: 0
H42: 0 | J42: 0 | L42: 0
H43: 0 | J43: 0 | L43: 0
H44: 0 | J44: 0 | L44: 0
H45: 0 | J45: 0 | L45: 0
H46: 0 | J46: 0 | L46: 0
H47: 0 | J47: 0 | L47: 0
H48: 0 | J48: 0 | L48: 0
H49: 0 | J49: 0 | L49: 0
H50: 0 | J50: 0 | L50: 0
H51: 0 | J51: 0 | L51: 0
H52: 0 | J52: 0 | L52: 0
H53: 0 | J53: 0 | L53: 0
H54: 0 | J54: 0 | L54: 0
H55: 0 | J55: 0 | L55: 0
H56: 0 | J56: 0 | L56: 0
H57: 0 | J57: 0 | L57: 0
A58: OBS:. | F58: TOTAIS | G58: =SUM(H26:H57) -> 126000 | I58: =SUM(J26:J57) -> 130500 | K58: =SUM(L26:L57) -> 135000
A60: DATA | G60: APROVADO
A61: 2016-01-04

Sheet 3.1
A1: =+'itens projetos'!B13 -> Impressão
A2: VERBA | B2: VR. NOTA | C2: N º CHEQUE | D2: DATA DA SAÍDA | E2: DESCRIÇÃO DA SAÍDA | F2: NF | G2: DATA DA NOTA | H2: QTDADE
A3: =+'itens projetos'!H13 -> 141000 | B3: 141000 | C3: 57748 | D3: 2017-10-11 | E3: IPSIS GRÁFICA E EDITORA S/A | F3: 57748 | G3: 2017-10-11 | H3: 3000
A15: =SUM(A3:A14) -> 141000 | B15: =SUM(B3:B14) -> 141000
A16: SALDO | B16: =A15-B15 -> 0
A18: COTAÇÃO DE MATERIAIS E SERVIÇOS
G21: 1 - Fornecedor | I21: 2 - Fornecedor | K21: 3 - Fornecedor
A22: =+'itens projetos'!A2:L2 -> (DE ARTE ) A COLEÇÃO - COLETÂNEA DE OBRAS DE ARTE DE ARTISTAS BRASILEIROS PRONAC 164867 | G22: COR E TAL | I22: KLINTOWITZ | K22: LUCKY
G23: CNPJ: 10.875.118/0001-17 | I23: CNPJ: 08.977.656/0001-70 | K23: CNPJ: 00.265.815/0001-00
A24: QTDE | B24: UNI | C24: COD | D24: DESCRIÇÃO DO MATERIAL | G24: V. UNI | H24: V. TOTAL | I24: V. UNI | J24: V. TOTAL | K24: V. UNI | L24: V. TOTAL
A25: 60 | B25: UNI | C25: 9 | D25: REDATOR | G25: 200 | H25: =A25*G25 -> 12000 | I25: 210 | J25: =I25*A25 -> 12600 | K25: 230 | L25: =K25*A25 -> 13800
H26: =A26*G26 -> 0 | J26: =I26*A26 -> 0 | L26: =K26*A26 -> 0
H27: 0 | J27: 0 | L27: 0
H28: 0 | J28: 0 | L28: 0
H29: 0 | J29: 0 | L29: 0
H30: 0 | J30: 0 | L30: 0
H31: 0 | J31: 0 | L31: 0
H32: 0 | J32: 0 | L32: 0
H33: 0 | J33: 0 | L33: 0
H34: 0 | J34: 0 | L34: 0
H35: 0 | J35: 0 | L35: 0
H36: 0 | J36: 0 | L36: 0
H37: 0 | J37: 0 | L37: 0
H38: 0 | J38: 0 | L38: 0
H39: 0 | J39: 0 | L39: 0
H40: 0 | J40: 0 | L40: 0
H41: 0 | J41: 0 | L41: 0
H42: 0 | J42: 0 | L42: 0
H43: 0 | J43: 0 | L43: 0
H44: 0 | J44: 0 | L44: 0
H45: 0 | J45: 0 | L45: 0
H46: 0 | J46: 0 | L46: 0
H47: 0 | J47: 0 | L47: 0
H48: 0 | J48: 0 | L48: 0
H49: 0 | J49: 0 | L49: 0
H50: 0 | J50: 0 | L50: 0
H51: 0 | J51: 0 | L51: 0
H52: 0 | J52: 0 | L52: 0
H53: 0 | J53: 0 | L53: 0
H54: 0 | J54: 0 | L54: 0
H55: 0 | J55: 0 | L55: 0
H56: 0 | J56: 0 | L56: 0
A57: OBS:. | F57: TOTAIS | G57: =SUM(H25:H56) -> 12000 | I57: =SUM(J25:J56) -> 12600 | K57: =SUM(L25:L56) -> 13800
A59: DATA | G59: APROVADO
A60: 2016-01-04

Sheet 3.2
A1: =+'itens projetos'!B14 -> Revisão de Texto
A2: VERBA | B2: VR. NOTA | C2: N º CHEQUE | D2: DATA DA SAÍDA | E2: DESCRIÇÃO DA SAÍDA | F2: NF | G2: DATA DA NOTA | H2: QTDADE
A3: =+'itens projetos'!H14 -> 1080
A7: =SUM(A3:A6) -> 1080 | B7: =SUM(B3:B6) -> 0
A8: SALDO | B8: =A7-B7 -> 1080
A12: COTAÇÃO DE MATERIAIS E SERVIÇOS
G15: 1 - Fornecedor | I15: 2 - Fornecedor | K15: 3 - Fornecedor
A16: =+'itens projetos'!A2:L2 -> (DE ARTE ) A COLEÇÃO - COLETÂNEA DE OBRAS DE ARTE DE ARTISTAS BRASILEIROS PRONAC 164867 | G16: VERTICE | I16: KLINTOWITZ | K16: LUCKY
G17: CNPJ: 06.093.781/0001-92 | I17: CNPJ: 08.977.656/0001-70 | K17: CNPJ: 00.265.815/0001-00
A18: QTDE | B18: UNI | C18: COD | D18: DESCRIÇÃO DO MATERIAL | G18: V. UNI | H18: V. TOTAL | I18: V. UNI | J18: V. TOTAL | K18: V. UNI | L18: V. TOTAL
A19: 60 | B19: UNI | C19: 10 | D19: REVISÃO DE TEXTO | G19: 15 | H19: =A19*G19 -> 900 | I19: 20 | J19: =I19*A19 -> 1200 | K19: 18 | L19: =K19*A19 -> 1080
H20: =A20*G20 -> 0 | J20: =I20*A20 -> 0 | L20: =K20*A20 -> 0
H21: 0 | J21: 0 | L21: 0
H22: 0 | J22: 0 | L22: 0
H23: 0 | J23: 0 | L23: 0
H24: 0 | J24: 0 | L24: 0
H25: 0 | J25: 0 | L25: 0
H26: 0 | J26: 0 | L26: 0
H27: 0 | J27: 0 | L27: 0
H28: 0 | J28: 0 | L28: 0
H29: 0 | J29: 0 | L29: 0
H30: 0 | J30: 0 | L30: 0
H31: 0 | J31: 0 | L31: 0
H32: 0 | J32: 0 | L32: 0
H33: 0 | J33: 0 | L33: 0
H34: 0 | J34: 0 | L34: 0
H35: 0 | J35: 0 | L35: 0
H36: 0 | J36: 0 | L36: 0
H37: 0 | J37: 0 | L37: 0
H38: 0 | J38: 0 | L38: 0
H39: 0 | J39: 0 | L39: 0
H40: 0 | J40: 0 | L40: 0
H41: 0 | J41: 0 | L41: 0
H42: 0 | J42: 0 | L42: 0
H43: 0 | J43: 0 | L43: 0
H44: 0 | J44: 0 | L44: 0
H45: 0 | J45: 0 | L45: 0
H46: 0 | J46: 0 | L46: 0
H47: 0 | J47: 0 | L47: 0
H48: 0 | J48: 0 | L48: 0
H49: 0 | J49: 0 | L49: 0
H50: 0 | J50: 0 | L50: 0
A51: OBS:. | F51: TOTAIS | G51: =SUM(H19:H50) -> 900 | I51: =SUM(J19:J50) -> 1200 | K51: =SUM(L19:L50) -> 1080
A53: DATA | G53: APROVADO
A54: 2016-01-05

Sheet 3.3
A1: =+'itens projetos'!B15 -> Tradução
A2: VERBA | B2: VR. NOTA | C2: N º CHEQUE | D2: DATA DA SAÍDA | E2: DESCRIÇÃO DA SAÍDA | F2: NF | G2: DATA DA NOTA | H2: QTDADE
A3: =+'itens projetos'!H15 -> 3500
A8: =SUM(A3:A7) -> 3500 | B8: =SUM(B3:B7) -> 0
A9: SALDO | B9: =A8-B8 -> 3500
A12: COTAÇÃO DE MATERIAIS E SERVIÇOS
G15: 1 - Fornecedor | I15: 2 - Fornecedor | K15: 3 - Fornecedor
A16: =+'itens projetos'!A2:L2 -> (DE ARTE ) A COLEÇÃO - COLETÂNEA DE OBRAS DE ARTE DE ARTISTAS BRASILEIROS PRONAC 164867 | G16: PACOLLA | I16: BRSA | K16: ATELIER
G17: CNPJ: 09.065.857/0001-64 | I17: CNPJ: 03.865.639/0001-28 | K17: CNPJ: 03.499.313/0001-24
A18: QTDE | B18: UNI | C18: COD | D18: DESCRIÇÃO DO MATERIAL | G18: V. UNI | H18: V. TOTAL | I18: V. UNI | J18: V. TOTAL | K18: V. UNI | L18: V. TOTAL
A19: 4 | C19: 11 | D19: Assessoria de Imprensa | G19: 4000 | H19: 16000 | I19: 4200 | J19: 16800 | K19: 4500 | L19: 18000
H20: =A20*G20 -> 0 | J20: =I20*A20 -> 0 | L20: =K20*A20 -> 0
H21: 0 | J21: 0 | L21: 0
H22: 0 | J22: 0 | L22: 0
H23: 0 | J23: 0 | L23: 0
H24: 0 | J24: 0 | L24: 0
H25: 0 | J25: 0 | L25: 0
H26: 0 | J26: 0 | L26: 0
H27: 0 | J27: 0 | L27: 0
H28: 0 | J28: 0 | L28: 0
H29: 0 | J29: 0 | L29: 0
H30: 0 | J30: 0 | L30: 0
H31: 0 | J31: 0 | L31: 0
H32: 0 | J32: 0 | L32: 0
H33: 0 | J33: 0 | L33: 0
H34: 0 | J34: 0 | L34: 0
H35: 0 | J35: 0 | L35: 0
H36: 0 | J36: 0 | L36: 0
H37: 0 | J37: 0 | L37: 0
H38: 0 | J38: 0 | L38: 0
H39: 0 | J39: 0 | L39: 0
H40: 0 | J40: 0 | L40: 0
H41: 0 | J41: 0 | L41: 0
H42: 0 | J42: 0 | L42: 0
H43: 0 | J43: 0 | L43: 0
H44: 0 | J44: 0 | L44: 0
H45: 0 | J45: 0 | L45: 0
H46: 0 | J46: 0 | L46: 0
H47: 0 | J47: 0 | L47: 0
H48: 0 | J48: 0 | L48: 0
H49: 0 | J49: 0 | L49: 0
H50: 0 | J50: 0 | L50: 0
A51: OBS:. | F51: TOTAIS | G51: =SUM(H19:H50) -> 16000 | I51: =SUM(J19:J50) -> 16800 | K51: =SUM(L19:L50) -> 18000
G53: APROVADO
A54: 2015-01-08

Sheet 3.4
A1: =+'itens projetos'!B16 -> Assessor de imprensa
A2: VERBA | B2: VR. NOTA | C2: N º CHEQUE | D2: DATA DA SAÍDA | E2: DESCRIÇÃO DA SAÍDA | F2: NF | G2: DATA DA NOTA | H2: QTDADE
A3: =+'itens projetos'!H16 -> 7000 | B3: 7000 | C3: 850013 | D3: 2017-11-10 | E3: AZUL CONSULTORIA EM PROPAGANDA LTDA | F3: NF 0349 | G3: 2017-11-17
A16: =SUM(A3:A15) -> 7000 | B16: =SUM(B3:B15) -> 7000
A17: SALDO | B17: =A16-B16 -> 0
A22: COTAÇÃO DE MATERIAIS E SERVIÇOS
G25: 1 - Fornecedor | I25: 2 - Fornecedor | K25: 3 - Fornecedor
A26: =+'itens projetos'!A2:L2 -> (DE ARTE ) A COLEÇÃO - COLETÂNEA DE OBRAS DE ARTE DE ARTISTAS BRASILEIROS PRONAC 164867 | G26: BRSA | I26: AGEIMAGEM | K26: ATELIER
G27: CNPJ:03.865.639/0001-28 | I27: CNPJ:07.180.899/0001-10 | K27: CNPJ: 03.499.313/0001-24
A28: QTDE | B28: UNI | C28: COD | D28: DESCRIÇÃO DO MATERIAL | G28: V. UNI | H28: V. TOTAL | I28: V. UNI | J28: V. TOTAL | K28: V. UNI | L28: V. TOTAL
A29: 4 | B29: SERVIÇOS | C29: 12 | D29: ASSESSORIA DE IMPRENSA | G29: 3500 | H29: =A29*G29 -> 14000 | I29: 3000 | J29: =I29*A29 -> 12000 | K29: 4000 | L29: =K29*A29 -> 16000
H33: =A33*G33 -> 0 | J33: =I33*A33 -> 0 | L33: =K33*A33 -> 0
H34: 0 | J34: 0 | L34: 0
H35: 0 | J35: 0 | L35: 0
H36: 0 | J36: 0 | L36: 0
H37: 0 | J37: 0 | L37: 0
H38: 0 | J38: 0 | L38: 0
H39: 0 | J39: 0 | L39: 0
H40: 0 | J40: 0 | L40: 0
H41: 0 | J41: 0 | L41: 0
H42: 0 | J42: 0 | L42: 0
H43: 0 | J43: 0 | L43: 0
H44: 0 | J44: 0 | L44: 0
H45: 0 | J45: 0 | L45: 0
H46: 0 | J46: 0 | L46: 0
H47: 0 | J47: 0 | L47: 0
H48: 0 | J48: 0 | L48: 0
H49: 0 | J49: 0 | L49: 0
H50: 0 | J50: 0 | L50: 0
H51: 0 | J51: 0 | L51: 0
H52: 0 | J52: 0 | L52: 0
H53: 0 | J53: 0 | L53: 0
H54: 0 | J54: 0 | L54: 0
H55: 0 | J55: 0 | L55: 0
H56: 0 | J56: 0 | L56: 0
H57: 0 | J57: 0 | L57: 0
H58: 0 | J58: 0 | L58: 0
H59: 0 | J59: 0 | L59: 0
H60: 0 | J60: 0 | L60: 0
A61: OBS:. | F61: TOTAIS | G61: =SUM(H29:H60) -> 14000 | I61: =SUM(J29:J60) -> 12000 | K61: =SUM(L29:L60) -> 16000
A63: DATA | I63: APROVADO
A64: 2016-01-04

Sheet 3.5
A1: =+'itens projetos'!B17 -> Confecção de Convites
A2: VERBA | B2: VR. NOTA | C2: N º CHEQUE | D2: DATA DA SAÍDA | E2: DESCRIÇÃO DA SAÍDA | F2: NF | G2: DATA DA NOTA | H2: QTDADE
A3: =+'itens projetos'!H17 -> 4500
A7: =SUM(A3:A6) -> 4500 | B7: =SUM(B3:B6) -> 0
A8: SALDO | B8: =A7-B7 -> 4500
A10: COTAÇÃO DE MATERIAIS E SERVIÇOS
G13: 1 - Fornecedor | I13: 2 - Fornecedor | K13: 3 - Fornecedor
A14: =+'itens projetos'!A2:L2 -> (DE ARTE ) A COLEÇÃO - COLETÂNEA DE OBRAS DE ARTE DE ARTISTAS BRASILEIROS PRONAC 164867 | G14: GUARACOPY | I14: COKTAIL | K14: EPS
G15: CNPJ: 08.490.307/0001-20 | I15: CNPJ: 15.021.896/0001-62 | K15: CNPJ: 05.004.458/0001-32
A16: QTDE | B16: UNI | C16: COD | D16: DESCRIÇÃO DO MATERIAL | G16: V. UNI | H16: V. TOTAL | I16: V. UNI | J16: V. TOTAL | K16: V. UNI | L16: V. TOTAL
A17: 3000 | B17: Unidade | C17: 13 | D17: Impressão de convites | G17: 3 | H17: =A17*G17 -> 9000 | I17: 2 | J17: =I17*A17 -> 6000 | K17: 3.1 | L17: =K17*A17 -> 9300
H18: =A18*G18 -> 0 | J18: =I18*A18 -> 0 | L18: =K18*A18 -> 0
H19: 0 | J19: 0 | L19: 0
H20: 0 | J20: 0 | L20: 0
H21: 0 | J21: 0 | L21: 0
H22: 0 | J22: 0 | L22: 0
H23: 0 | J23: 0 | L23: 0
H24: 0 | J24: 0 | L24: 0
H25: 0 | J25: 0 | L25: 0
H26: 0 | J26: 0 | L26: 0
H27: 0 | J27: 0 | L27: 0
H28: 0 | J28: 0 | L28: 0
H29: 0 | J29: 0 | L29: 0
H30: 0 | J30: 0 | L30: 0
H31: 0 | J31: 0 | L31: 0
H32: 0 | J32: 0 | L32: 0
H33: 0 | J33: 0 | L33: 0
H34: 0 | J34: 0 | L34: 0
H35: 0 | J35: 0 | L35: 0
H36: 0 | J36: 0 | L36: 0
H37: 0 | J37: 0 | L37: 0
H38: 0 | J38: 0 | L38: 0
H39: 0 | J39: 0 | L39: 0
H40: 0 | J40: 0 | L40: 0
H41: 0 | J41: 0 | L41: 0
H42: 0 | J42: 0 | L42: 0
H43: 0 | J43: 0 | L43: 0
H44: 0 | J44: 0 | L44: 0
H45: 0 | J45: 0 | L45: 0
H46: 0 | J46: 0 | L46: 0
H47: 0 | J47: 0 | L47: 0
H48: 0 | J48: 0 | L48: 0
A49: OBS:. | F49: TOTAIS | G49: =SUM(H17:H48) -> 9000 | I49: =SUM(J17:J48) -> 6000 | K49: =SUM(L17:L48) -> 9300
A51: DATA | I51: APROVADO
A52: 2016-01-04

Sheet 3.6
A1: =+'itens projetos'!B18 -> Estandartes / Banners | I1: =+'itens projetos'!C18 -> 0
A2: VERBA | B2: VR. NOTA | C2: N º CHEQUE | D2: DATA DA SAÍDA | E2: DESCRIÇÃO DA SAÍDA | F2: NF | G2: DATA DA NOTA | H2: QTDADE
A3: =+'itens projetos'!H18 -> 1750
A7: =SUM(A3:A6) -> 1750 | B7: =SUM(B3:B6) -> 0
A8: SALDO | B8: =A7-B7 -> 1750
A12: COTAÇÃO DE MATERIAIS E SERVIÇOS
G15: 1 - Fornecedor | I15: 2 - Fornecedor | K15: 3 - Fornecedor
A16: =+'itens projetos'!A2:L2 -> (DE ARTE ) A COLEÇÃO - COLETÂNEA DE OBRAS DE ARTE DE ARTISTAS BRASILEIROS PRONAC 164867
A18: QTDE | B18: UNI | C18: COD | D18: DESCRIÇÃO DO MATERIAL | G18: V. UNI | H18: V. TOTAL | I18: V. UNI | J18: V. TOTAL | K18: V. UNI | L18: V. TOTAL
C19: 3.6 | H19: =A19*G19 -> 0 | J19: =I19*A19 -> 0 | L19: =K19*A19 -> 0
H20: =A20*G20 -> 0 | J20: =I20*A20 -> 0 | L20: =K20*A20 -> 0
H21: 0 | J21: 0 | L21: 0
H22: 0 | J22: 0 | L22: 0
H23: 0 | J23: 0 | L23: 0
H24: 0 | J24: 0 | L24: 0
H25: 0 | J25: 0 | L25: 0
H26: 0 | J26: 0 | L26: 0
H27: 0 | J27: 0 | L27: 0
H28: 0 | J28: 0 | L28: 0
H29: 0 | J29: 0 | L29: 0
H30: 0 | J30: 0 | L30: 0
H31: 0 | J31: 0 | L31: 0
H32: 0 | J32: 0 | L32: 0
H33: 0 | J33: 0 | L33: 0
H34: 0 | J34: 0 | L34: 0
H35: 0 | J35: 0 | L35: 0
H36: 0 | J36: 0 | L36: 0
H37: 0 | J37: 0 | L37: 0
H38: 0 | J38: 0 | L38: 0
H39: 0 | J39: 0 | L39: 0
H40: 0 | J40: 0 | L40: 0
H41: 0 | J41: 0 | L41: 0
H42: 0 | J42: 0 | L42: 0
H43: 0 | J43: 0 | L43: 0
H44: 0 | J44: 0 | L44: 0
H45: 0 | J45: 0 | L45: 0
H46: 0 | J46: 0 | L46: 0
H47: 0 | J47: 0 | L47: 0
H48: 0 | J48: 0 | L48: 0
H49: 0 | J49: 0 | L49: 0
H50: 0 | J50: 0 | L50: 0
A51: OBS:. | F51: TOTAIS | G51: =SUM(H19:H50) -> 0 | I51: =SUM(J19:J50) -> 0 | K51: =SUM(L19:L50) -> 0
A53: DATA | G53: APROVADO
A54: 2013-07-31

Sheet 3.7
A1: =+'itens projetos'!B19 -> Folders | I1: =+'itens projetos'!C19 -> 0
A2: VERBA | B2: VR. NOTA | C2: N º CHEQUE | D2: DATA DA SAÍDA | E2: DESCRIÇÃO DA SAÍDA | F2: NF | G2: DATA DA NOTA | H2: QTDADE
A3: =+'itens projetos'!H19 -> 5000
A7: =SUM(A3:A6) -> 5000 | B7: =SUM(B3:B6) -> 0
A8: SALDO | B8: =A7-B7 -> 5000
A12: COTAÇÃO DE MATERIAIS E SERVIÇOS
G15: 1 - Fornecedor | I15: 2 - Fornecedor | K15: 3 - Fornecedor
A16: =+'itens projetos'!A2:L2 -> (DE ARTE ) A COLEÇÃO - COLETÂNEA DE OBRAS DE ARTE DE ARTISTAS BRASILEIROS PRONAC 164867 | G16: COKTAIL | I16: REVELAÇÃO | K16: UPRISE
G17: CNPJ: 15.021.896/0001-62 | I17: CNPJ: 08.288.515/0001-40 | K17: CNPJ: 16.887.262/0001-50
A18: QTDE | B18: UNI | C18: COD | D18: DESCRIÇÃO DO MATERIAL | G18: V. UNI | H18: V. TOTAL | I18: V. UNI | J18: V. TOTAL | K18: V. UNI | L18: V. TOTAL
A19: 2000 | B19: UNIDADE | C19: 15 | D19: Folders. | G19: 2.5 | H19: =A19*G19 -> 5000 | I19: 3.8 | J19: =I19*A19 -> 7600 | K19: 4.1 | L19: =K19*A19 -> 8200
H20: =A20*G20 -> 0 | J20: =I20*A20 -> 0 | L20: =K20*A20 -> 0
H21: 0 | J21: 0 | L21: 0
H22: 0 | J22: 0 | L22: 0
H23: 0 | J23: 0 | L23: 0
H24: 0 | J24: 0 | L24: 0
H25: 0 | J25: 0 | L25: 0
H26: 0 | J26: 0 | L26: 0
H27: 0 | J27: 0 | L27: 0
H28: 0 | J28: 0 | L28: 0
H29: 0 | J29: 0 | L29: 0
H30: 0 | J30: 0 | L30: 0
H31: 0 | J31: 0 | L31: 0
H32: 0 | J32: 0 | L32: 0
H33: 0 | J33: 0 | L33: 0
H34: 0 | J34: 0 | L34: 0
H35: 0 | J35: 0 | L35: 0
H36: 0 | J36: 0 | L36: 0
H37: 0 | J37: 0 | L37: 0
H38: 0 | J38: 0 | L38: 0
H39: 0 | J39: 0 | L39: 0
H40: 0 | J40: 0 | L40: 0
H41: 0 | J41: 0 | L41: 0
H42: 0 | J42: 0 | L42: 0
H43: 0 | J43: 0 | L43: 0
H44: 0 | J44: 0 | L44: 0
H45: 0 | J45: 0 | L45: 0
H46: 0 | J46: 0 | L46: 0
H47: 0 | J47: 0 | L47: 0
H48: 0 | J48: 0 | L48: 0
H49: 0 | J49: 0 | L49: 0
H50: 0 | J50: 0 | L50: 0
A51: OBS:. | F51: TOTAIS | G51: =SUM(H19:H50) -> 5000 | I51: =SUM(J19:J50) -> 7600 | K51: =SUM(L19:L50) -> 8200
A53: DATA | G53: APROVADO
A54: 2016-01-04

Sheet 3.8
A1: =+'itens projetos'!B20 -> Fotografia Artística (Fotógrafo, Tratamento, Revelação, etc.)
A2: VERBA | B2: VR. NOTA | C2: N º CHEQUE | D2: DATA DA SAÍDA | E2: DESCRIÇÃO DA SAÍDA | F2: NF | G2: DATA DA NOTA | H2: QTDADE
A3: =+'itens projetos'!H20 -> 2500
A7: =SUM(A3:A6) -> 2500 | B7: =SUM(B3:B6) -> 0
A8: SALDO | B8: =A7-B7 -> 2500
A11: COTAÇÃO DE MATERIAIS E SERVIÇOS
G14: 1 - Fornecedor | I14: 2 - Fornecedor | K14: 3 - Fornecedor
A15: =+'itens projetos'!A2:L2 -> (DE ARTE ) A COLEÇÃO - COLETÂNEA DE OBRAS DE ARTE DE ARTISTAS BRASILEIROS PRONAC 164867 | G15: 3º VISÃO | I15: BIT CLICK | K15: SAT 5 CENA
G16: CNPJ: 43.865.484/0001-44 | I16: CNPJ: 58.102.252/0001-01 | K16: CNPJ: 06.181.012/0001-46
A17: QTDE | B17: UNI | C17: COD | D17: DESCRIÇÃO DO MATERIAL | G17: V. UNI | H17: V. TOTAL | I17: V. UNI | J17: V. TOTAL | K17: V. UNI | L17: V. TOTAL
A18: 2 | B18: SERVIÇOS | C18: 16 | D18: Fotografia Artística (Fotógrafo, Tratamento, Revelação, etc.) | G18: 2500 | H18: =A18*G18 -> 5000 | I18: 2800 | J18: =I18*A18 -> 5600 | K18: 3000 | L18: =K18*A18 -> 6000
H19: =A19*G19 -> 0 | J19: =I19*A19 -> 0 | L19: =K19*A19 -> 0
H20: 0 | J20: 0 | L20: 0
H21: 0 | J21: 0 | L21: 0
H22: 0 | J22: 0 | L22: 0
H23: 0 | J23: 0 | L23: 0
H24: 0 | J24: 0 | L24: 0
H25: 0 | J25: 0 | L25: 0
H26: 0 | J26: 0 | L26: 0
H27: 0 | J27: 0 | L27: 0
H28: 0 | J28: 0 | L28: 0
H29: 0 | J29: 0 | L29: 0
H30: 0 | J30: 0 | L30: 0
H31: 0 | J31: 0 | L31: 0
H32: 0 | J32: 0 | L32: 0
H33: 0 | J33: 0 | L33: 0
H34: 0 | J34: 0 | L34: 0
H35: 0 | J35: 0 | L35: 0
H36: 0 | J36: 0 | L36: 0
H37: 0 | J37: 0 | L37: 0
H38: 0 | J38: 0 | L38: 0
H39: 0 | J39: 0 | L39: 0
H40: 0 | J40: 0 | L40: 0
H41: 0 | J41: 0 | L41: 0
H42: 0 | J42: 0 | L42: 0
H43: 0 | J43: 0 | L43: 0
H44: 0 | J44: 0 | L44: 0
H45: 0 | J45: 0 | L45: 0
H46: 0 | J46: 0 | L46: 0
H47: 0 | J47: 0 | L47: 0
H48: 0 | J48: 0 | L48: 0
H49: 0 | J49: 0 | L49: 0
A50: OBS:. | F50: TOTAIS | G50: =SUM(H18:H49) -> 5000 | I50: =SUM(J18:J49) -> 5600 | K50: =SUM(L18:L49) -> 6000
A52: DATA | G52: APROVADO
A53: 2016-01-04

Sheet 3.9
A1: =+'itens projetos'!B21 -> Mídia impressa
A2: VERBA | B2: VR. NOTA | C2: N º CHEQUE | D2: DATA DA SAÍDA | E2: DESCRIÇÃO DA SAÍDA | F2: NF | G2: DATA DA NOTA | H2: QTDADE
A3: =+'itens projetos'!H21 -> 19000
A7: =SUM(A3:A6) -> 19000 | B7: =SUM(B3:B6) -> 0
A8: SALDO | B8: =A7-B7 -> 19000
A11: COTAÇÃO DE MATERIAIS E SERVIÇOS
G14: 1 - Fornecedor | I14: 2 - Fornecedor | K14: 3 - Fornecedor
A15: =+'itens projetos'!A2:L2 -> (DE ARTE ) A COLEÇÃO - COLETÂNEA DE OBRAS DE ARTE DE ARTISTAS BRASILEIROS PRONAC 164867 | G15: AG INFORMATICA | I15: ALFAYED | K15: NETESTUDIO
G16: CNPJ: 11.338.815/0001-00 | I16: CNPJ: 17.231.271/0001-03 | K16: CNPJ: 07.171.393/0001-45
A17: QTDE | B17: UNI | C17: COD | D17: DESCRIÇÃO DO MATERIAL | G17: V. UNI | H17: V. TOTAL | I17: V. UNI | J17: V. TOTAL | K17: V. UNI | L17: V. TOTAL
A18: 6 | C18: 17 | D18: Sítio de Internet - Design e criação | G18: 600 | H18: =A18*G18 -> 3600 | I18: 650 | J18: =I18*A18 -> 3900 | K18: 700 | L18: =K18*A18 -> 4200
H19: =A19*G19 -> 0 | J19: =I19*A19 -> 0 | L19: =K19*A19 -> 0
H20: 0 | J20: 0 | L20: 0
H21: 0 | J21: 0 | L21: 0
H22: 0 | J22: 0 | L22: 0
H23: 0 | J23: 0 | L23: 0
H24: 0 | J24: 0 | L24: 0
H25: 0 | J25: 0 | L25: 0
H26: 0 | J26: 0 | L26: 0
H27: 0 | J27: 0 | L27: 0
H28: 0 | J28: 0 | L28: 0
H29: 0 | J29: 0 | L29: 0
H30: 0 | J30: 0 | L30: 0
H31: 0 | J31: 0 | L31: 0
H32: 0 | J32: 0 | L32: 0
H33: 0 | J33: 0 | L33: 0
H34: 0 | J34: 0 | L34: 0
H35: 0 | J35: 0 | L35: 0
H36: 0 | J36: 0 | L36: 0
H37: 0 | J37: 0 | L37: 0
H38: 0 | J38: 0 | L38: 0
H39: 0 | J39: 0 | L39: 0
H40: 0 | J40: 0 | L40: 0
H41: 0 | J41: 0 | L41: 0
H42: 0 | J42: 0 | L42: 0
H43: 0 | J43: 0 | L43: 0
H44: 0 | J44: 0 | L44: 0
H45: 0 | J45: 0 | L45: 0
H46: 0 | J46: 0 | L46: 0
H47: 0 | J47: 0 | L47: 0
H48: 0 | J48: 0 | L48: 0
H49: 0 | J49: 0 | L49: 0
A50: OBS:. | F50: TOTAIS | G50: =SUM(H18:H49) -> 3600 | I50: =SUM(J18:J49) -> 3900 | K50: =SUM(L18:L49) -> 4200
A52: DATA | G52: APROVADO
A53: 2015-01-06

Sheet 3.10
A1: =+'itens projetos'!B22 -> Sítio de Internet - Design e criação
A2: VERBA | B2: VR. NOTA | C2: N º CHEQUE | D2: DATA DA SAÍDA | E2: DESCRIÇÃO DA SAÍDA | F2: NF | G2: DATA DA NOTA | H2: QTDADE
A3: =+'itens projetos'!H22 -> 3600 | B3: 600 | C3: 850018 | D3: 2017-11-24 | E3: GALEANO INFORMATICA LTDA-ME | F3: NF 0819 | G3: 2017-11-23
A7: =SUM(A3:A6) -> 3600 | B7: =SUM(B3:B6) -> 600
A8: SALDO | B8: =A7-B7 -> 3000
A12: COTAÇÃO DE MATERIAIS E SERVIÇOS
G15: 1 - Fornecedor | I15: 2 - Fornecedor | K15: 3 - Fornecedor
A16: =+'itens projetos'!A2:L2 -> (DE ARTE ) A COLEÇÃO - COLETÂNEA DE OBRAS DE ARTE DE ARTISTAS BRASILEIROS PRONAC 164867 | G16: COR E TAL | I16: KLINTOWITZ | K16: LUCKY
G17: CNPJ: 10.875.118/0001-17 | I17: CNPJ: 08.977.656/0001-70 | K17: CNPJ: 00.265.815/0001-00
A18: QTDE | B18: UNI | C18: COD | D18: DESCRIÇÃO DO MATERIAL | G18: V. UNI | H18: V. TOTAL | I18: V. UNI | J18: V. TOTAL | K18: V. UNI | L18: V. TOTAL
A19: 1 | C19: 18 | D19: Curadoria | G19: 16000 | H19: =A19*G19 -> 16000 | I19: 17600 | J19: =I19*A19 -> 17600 | K19: 18000 | L19: =K19*A19 -> 18000
H20: =A20*G20 -> 0 | J20: =I20*A20 -> 0 | L20: =K20*A20 -> 0
H21: 0 | J21: 0 | L21: 0
H22: 0 | J22: 0 | L22: 0
H23: 0 | J23: 0 | L23: 0
H24: 0 | J24: 0 | L24: 0
H25: 0 | J25: 0 | L25: 0
H26: 0 | J26: 0 | L26: 0
H27: 0 | J27: 0 | L27: 0
H28: 0 | J28: 0 | L28: 0
H29: 0 | J29: 0 | L29: 0
H30: 0 | J30: 0 | L30: 0
H31: 0 | J31: 0 | L31: 0
H32: 0 | J32: 0 | L32: 0
H33: 0 | J33: 0 | L33: 0
H34: 0 | J34: 0 | L34: 0
H35: 0 | J35: 0 | L35: 0
H36: 0 | J36: 0 | L36: 0
H37: 0 | J37: 0 | L37: 0
H38: 0 | J38: 0 | L38: 0
H39: 0 | J39: 0 | L39: 0
H40: 0 | J40: 0 | L40: 0
H41: 0 | J41: 0 | L41: 0
H42: 0 | J42: 0 | L42: 0
H43: 0 | J43: 0 | L43: 0
H44: 0 | J44: 0 | L44: 0
H45: 0 | J45: 0 | L45: 0
H46: 0 | J46: 0 | L46: 0
H47: 0 | J47: 0 | L47: 0
H48: 0 | J48: 0 | L48: 0
H49: 0 | J49: 0 | L49: 0
H50: 0 | J50: 0 | L50: 0
A51: OBS:. | F51: TOTAIS | G51: =SUM(H19:H50) -> 16000 | I51: =SUM(J19:J50) -> 17600 | K51: =SUM(L19:L50) -> 18000
A53: DATA | G53: APROVADO
A54: 2015-01-07

Sheet 3.11
A1: =+'itens projetos'!B23 -> Curadoria
A2: VERBA | B2: VR. NOTA | C2: N º CHEQUE | D2: DATA DA SAÍDA | E2: DESCRIÇÃO DA SAÍDA | F2: NF | G2: DATA DA NOTA | H2: QTDADE
A3: =+'itens projetos'!H23 -> 8000 | B3: 8000 | C3: 850010 | D3: 2017-11-10 | E3: COR E TAL OFICINAS DE ARTE E EVENTOS LTDA | F3: NF 0994 | G3: 2017-11-13
A11: =SUM(A3:A10) -> 8000 | B11: =SUM(B3:B10) -> 8000
A12: SALDO | B12: =A11-B11 -> 0
A15: COTAÇÃO DE MATERIAIS E SERVIÇOS
G18: 1 - Fornecedor | I18: 2 - Fornecedor | K18: 3 - Fornecedor
A19: =+'itens projetos'!A2:L2 -> (DE ARTE ) A COLEÇÃO - COLETÂNEA DE OBRAS DE ARTE DE ARTISTAS BRASILEIROS PRONAC 164867 | G19: CHOUWA LTDA ME | I19: DIOGO MARIOTINI ME | K19: MERCADÃO DOS ESPORTES
G20: CNPJ: 74.219.155/0001-50 | I20: CNPJ: 11.667.423/0001-86 | K20: CNPJ: 60.955.325/0001-50
A21: QTDE | B21: UNI | C21: COD | D21: DESCRIÇÃO DO MATERIAL | G21: V. UNI | H21: V. TOTAL | I21: V. UNI | J21: V. TOTAL | K21: V. UNI | L21: V. TOTAL
A22: 50 | C22: 3.11 | D22: Fita de Cetim | G22: 1 | H22: 50 | I22: 2 | J22: =I22*A22 -> 100 | K22: 1.3 | L22: =K22*A22 -> 65
H23: =A23*G23 -> 0 | J23: =I23*A23 -> 0 | L23: =K23*A23 -> 0
H24: 0 | J24: 0 | L24: 0
H25: 0 | J25: 0 | L25: 0
H26: 0 | J26: 0 | L26: 0
H27: 0 | J27: 0 | L27: 0
H28: 0 | J28: 0 | L28: 0
H29: 0 | J29: 0 | L29: 0
H30: 0 | J30: 0 | L30: 0
H31: 0 | J31: 0 | L31: 0
H32: 0 | J32: 0 | L32: 0
H33: 0 | J33: 0 | L33: 0
H34: 0 | J34: 0 | L34: 0
H35: 0 | J35: 0 | L35: 0
H36: 0 | J36: 0 | L36: 0
H37: 0 | J37: 0 | L37: 0
H38: 0 | J38: 0 | L38: 0
H39: 0 | J39: 0 | L39: 0
H40: 0 | J40: 0 | L40: 0
H41: 0 | J41: 0 | L41: 0
H42: 0 | J42: 0 | L42: 0
H43: 0 | J43: 0 | L43: 0
H44: 0 | J44: 0 | L44: 0
H45: 0 | J45: 0 | L45: 0
H46: 0 | J46: 0 | L46: 0
H47: 0 | J47: 0 | L47: 0
H48: 0 | J48: 0 | L48: 0
H49: 0 | J49: 0 | L49: 0
H50: 0 | J50: 0 | L50: 0
H51: 0 | J51: 0 | L51: 0
H52: 0 | J52: 0 | L52: 0
H53: 0 | J53: 0 | L53: 0
A54: OBS:. | F54: TOTAIS | G54: =SUM(H22:H53) -> 50 | I54: =SUM(J22:J53) -> 100 | K54: =SUM(L22:L53) -> 65
A56: DATA | G56: APROVADO
A57: 2014-03-13

Sheet 3.12
A1: =+'itens projetos'!B24 -> Embalagem e acondicionamento para a exposição
A2: VERBA | B2: VR. NOTA | C2: N º CHEQUE | D2: DATA DA SAÍDA | E2: DESCRIÇÃO DA SAÍDA | F2: NF | G2: DATA DA NOTA | H2: QTDADE
A3: =+'itens projetos'!H24 -> 3800
A7: =SUM(A3:A6) -> 3800 | B7: =SUM(B3:B6) -> 0
A8: SALDO | B8: =A7-B7 -> 3800
A12: COTAÇÃO DE MATERIAIS E SERVIÇOS
G15: 1 - Fornecedor | I15: 2 - Fornecedor | K15: 3 - Fornecedor
A16: =+'itens projetos'!A2:L2 -> (DE ARTE ) A COLEÇÃO - COLETÂNEA DE OBRAS DE ARTE DE ARTISTAS BRASILEIROS PRONAC 164867 | G16: MF COM E INTERM LTDA | I16: MERCADÃO DOS ESPORTES | K16: SILAS BEZERRA ME
G17: CNPJ: 00.123.606/0001-14 | I17: 60.955.325/00001-50 | K17: CNPJ: 08.859.026/0001-00
A18: QTDE | B18: UNI | C18: COD | D18: DESCRIÇÃO DO MATERIAL | G18: V. UNI | H18: V. TOTAL | I18: V. UNI | J18: V. TOTAL | K18: V. UNI | L18: V. TOTAL
A19: 10 | C19: 3.12 | D19: FIT BALL | G19: 90 | H19: =A19*G19 -> 900 | I19: 91.52 | J19: 915.2 | K19: 92 | L19: =K19*A19 -> 920
H20: =A20*G20 -> 0 | J20: =I20*A20 -> 0 | L20: =K20*A20 -> 0
H21: 0 | J21: 0 | L21: 0
H22: 0 | J22: 0 | L22: 0
H23: 0 | J23: 0 | L23: 0
H24: 0 | J24: 0 | L24: 0
H25: 0 | J25: 0 | L25: 0
H26: 0 | J26: 0 | L26: 0
H27: 0 | J27: 0 | L27: 0
H28: 0 | J28: 0 | L28: 0
H29: 0 | J29: 0 | L29: 0
H30: 0 | J30: 0 | L30: 0
H31: 0 | J31: 0 | L31: 0
H32: 0 | J32: 0 | L32: 0
H33: 0 | J33: 0 | L33: 0
H34: 0 | J34: 0 | L34: 0
H35: 0 | J35: 0 | L35: 0
H36: 0 | J36: 0 | L36: 0
H37: 0 | J37: 0 | L37: 0
H38: 0 | J38: 0 | L38: 0
H39: 0 | J39: 0 | L39: 0
H40: 0 | J40: 0 | L40: 0
H41: 0 | J41: 0 | L41: 0
H42: 0 | J42: 0 | L42: 0
H43: 0 | J43: 0 | L43: 0
H44: 0 | J44: 0 | L44: 0
H45: 0 | J45: 0 | L45: 0
H46: 0 | J46: 0 | L46: 0
H47: 0 | J47: 0 | L47: 0
H48: 0 | J48: 0 | L48: 0
H49: 0 | J49: 0 | L49: 0
H50: 0 | J50: 0 | L50: 0
A51: OBS:. | F51: TOTAIS | G51: =SUM(H19:H50) -> 900 | I51: =SUM(J19:J50) -> 915.2 | K51: =SUM(L19:L50) -> 920
A53: DATA | G53: APROVADO
A54: 2013-05-28

Sheet 3.13
A1: =+'itens projetos'!B25 -> Locação de Equipamento de projeção
A2: VERBA | B2: VR. NOTA | C2: N º CHEQUE | D2: DATA DA SAÍDA | E2: DESCRIÇÃO DA SAÍDA | F2: NF | G2: DATA DA NOTA | H2: QTDADE
A3: =+'itens projetos'!H25 -> 2500
A16: =SUM(A3:A15) -> 2500 | B16: =SUM(B3:B15) -> 0 | H16: =SUM(H3:H15) -> 0
A17: SALDO | B17: =A16-B16 -> 2500
A21: COTAÇÃO DE MATERIAIS E SERVIÇOS
G24: 1 - Fornecedor | I24: 2 - Fornecedor | K24: 3 - Fornecedor
A25: =+'itens projetos'!A2:L2 -> (DE ARTE ) A COLEÇÃO - COLETÂNEA DE OBRAS DE ARTE DE ARTISTAS BRASILEIROS PRONAC 164867
A27: QTDE | B27: UNI | C27: COD | D27: DESCRIÇÃO DO MATERIAL | G27: V. UNI | H27: V. TOTAL | I27: V. UNI | J27: V. TOTAL | K27: V. UNI | L27: V. TOTAL
H28: =A28*G28 -> 0 | J28: =I28*A28 -> 0 | L28: =K28*A28 -> 0
H29: =A29*G29 -> 0 | J29: =I29*A29 -> 0 | L29: =K29*A29 -> 0
H30: 0 | J30: 0 | L30: 0
H31: 0 | J31: 0 | L31: 0
H32: 0 | J32: 0 | L32: 0
H33: 0 | J33: 0 | L33: 0
H34: 0 | J34: 0 | L34: 0
H35: 0 | J35: 0 | L35: 0
H36: 0 | J36: 0 | L36: 0
H37: 0 | J37: 0 | L37: 0
H38: 0 | J38: 0 | L38: 0
H39: 0 | J39: 0 | L39: 0
H40: 0 | J40: 0 | L40: 0
H41: 0 | J41: 0 | L41: 0
H42: 0 | J42: 0 | L42: 0
H43: 0 | J43: 0 | L43: 0
H44: 0 | J44: 0 | L44: 0
H45: 0 | J45: 0 | L45: 0
H46: 0 | J46: 0 | L46: 0
H47: 0 | J47: 0 | L47: 0
H48: 0 | J48: 0 | L48: 0
H49: 0 | J49: 0 | L49: 0
H50: 0 | J50: 0 | L50: 0
H51: 0 | J51: 0 | L51: 0
H52: 0 | J52: 0 | L52: 0
H53: 0 | J53: 0 | L53: 0
H54: 0 | J54: 0 | L54: 0
H55: 0 | J55: 0 | L55: 0
H56: 0 | J56: 0 | L56: 0
H57: 0 | J57: 0 | L57: 0
H58: 0 | J58: 0 | L58: 0
H59: 0 | J59: 0 | L59: 0
A60: OBS:. | F60: TOTAIS | G60: =SUM(H28:H59) -> 0 | I60: =SUM(J28:J59) -> 0 | K60: =SUM(L28:L59) -> 0
A62: DATA | G62: APROVADO
A63: 2013-05-29

Sheet 4.1
A1: =+'itens projetos'!B26 -> Montador | I1: =+'itens projetos'!C26 -> 0
A2: VERBA | B2: VR. NOTA | C2: N º CHEQUE | D2: DATA DA SAÍDA | E2: DESCRIÇÃO DA SAÍDA | F2: NF | G2: DATA DA NOTA | H2: QTDADE
A3: =+'itens projetos'!H26 -> 2920
A11: =SUM(A3:A10) -> 2920 | B11: =SUM(B3:B10) -> 0
A12: SALDO | B12: =A11-B11 -> 2920
A14: COTAÇÃO DE MATERIAIS E SERVIÇOS
G17: 1 - Fornecedor | I17: 2 - Fornecedor | K17: 3 - Fornecedor
A18: =+'itens projetos'!A2:L2 -> (DE ARTE ) A COLEÇÃO - COLETÂNEA DE OBRAS DE ARTE DE ARTISTAS BRASILEIROS PRONAC 164867 | G18: COR E TAL | I18: KLINTOWITZ | K18: LUCKY
G19: CNPJ: 10.875.118/0001-17 | I19: CNPJ: 08.977.656/0001-70 | K19: CNPJ: 00.265.815/0001-00
A20: QTDE | B20: UNI | C20: COD | D20: DESCRIÇÃO DO MATERIAL | G20: V. UNI | H20: V. TOTAL | I20: V. UNI | J20: V. TOTAL | K20: V. UNI | L20: V. TOTAL
A21: 1 | C21: 22 | D21: Projeto de Comunicação Visual | G21: 10000 | H21: =A21*G21 -> 10000 | I21: 12000 | J21: =I21*A21 -> 12000 | K21: 14000 | L21: =K21*A21 -> 14000
H22: =A22*G22 -> 0 | J22: 0 | L22: =K22*A22 -> 0
H23: 0 | J23: 0 | L23: 0
H24: 0 | J24: 0 | L24: 0
H25: 0 | J25: 0 | L25: 0
H26: 0 | J26: 0 | L26: 0
H27: 0 | J27: 0 | L27: 0
H28: 0 | J28: 0 | L28: 0
H29: 0 | J29: 0 | L29: 0
H30: 0 | J30: 0 | L30: 0
H31: 0 | J31: 0 | L31: 0
H32: 0 | J32: 0 | L32: 0
H33: 0 | J33: 0 | L33: 0
H34: 0 | J34: 0 | L34: 0
H35: 0 | J35: 0 | L35: 0
H36: 0 | J36: 0 | L36: 0
H37: 0 | J37: 0 | L37: 0
H38: 0 | J38: 0 | L38: 0
H39: 0 | J39: 0 | L39: 0
H40: 0 | J40: 0 | L40: 0
H41: 0 | J41: 0 | L41: 0
H42: 0 | J42: 0 | L42: 0
H43: 0 | J43: 0 | L43: 0
H44: 0 | J44: 0 | L44: 0
H45: 0 | J45: 0 | L45: 0
H46: 0 | J46: 0 | L46: 0
H47: 0 | J47: 0 | L47: 0
H48: 0 | J48: 0 | L48: 0
H49: 0 | J49: 0 | L49: 0
H50: 0 | J50: 0 | L50: 0
H51: 0 | J51: 0 | L51: 0
H52: 0 | J52: 0 | L52: 0
A53: OBS:. | F53: TOTAIS | G53: =SUM(H21:H52) -> 10000 | I53: =SUM(J21:J52) -> 12000 | K53: =SUM(L21:L52) -> 14000
A55: DATA | G55: APROVADO
A56: 2015-01-05

Sheet 4.2
A1: =+'itens projetos'!B27 -> Projeto de Comunicação Visual
A2: VERBA | B2: VR. NOTA | C2: N º CHEQUE | D2: DATA DA SAÍDA | E2: DESCRIÇÃO DA SAÍDA | F2: NF | G2: DATA DA NOTA | H2: QTDADE
A3: =+'itens projetos'!H27 -> 4000
A7: =SUM(A3:A6) -> 4000 | B7: =SUM(B3:B6) -> 0
A8: SALDO | B8: =A7-B7 -> 4000
A10: COTAÇÃO DE MATERIAIS E SERVIÇOS
G13: 1 - Fornecedor | I13: 2 - Fornecedor | K13: 3 - Fornecedor
A14: =+'itens projetos'!A2:L2 -> (DE ARTE ) A COLEÇÃO - COLETÂNEA DE OBRAS DE ARTE DE ARTISTAS BRASILEIROS PRONAC 164867
A16: QTDE | B16: UNI | C16: COD | D16: DESCRIÇÃO DO MATERIAL | G16: V. UNI | H16: V. TOTAL | I16: V. UNI | J16: V. TOTAL | K16: V. UNI | L16: V. TOTAL
C17: 3.20 | H17: =A17*G17 -> 0 | J17: =I17*A17 -> 0 | L17: =K17*A17 -> 0
H18: =A18*G18 -> 0 | J18: 0 | L18: =K18*A18 -> 0
H19: 0 | J19: 0 | L19: 0
H20: 0 | J20: 0 | L20: 0
H21: 0 | J21: 0 | L21: 0
H22: 0 | J22: 0 | L22: 0
H23: 0 | J23: 0 | L23: 0
H24: 0 | J24: 0 | L24: 0
H25: 0 | J25: 0 | L25: 0
H26: 0 | J26: 0 | L26: 0
H27: 0 | J27: 0 | L27: 0
H28: 0 | J28: 0 | L28: 0
H29: 0 | J29: 0 | L29: 0
H30: 0 | J30: 0 | L30: 0
H31: 0 | J31: 0 | L31: 0
H32: 0 | J32: 0 | L32: 0
H33: 0 | J33: 0 | L33: 0
H34: 0 | J34: 0 | L34: 0
H35: 0 | J35: 0 | L35: 0
H36: 0 | J36: 0 | L36: 0
H37: 0 | J37: 0 | L37: 0
H38: 0 | J38: 0 | L38: 0
H39: 0 | J39: 0 | L39: 0
H40: 0 | J40: 0 | L40: 0
H41: 0 | J41: 0 | L41: 0
H42: 0 | J42: 0 | L42: 0
H43: 0 | J43: 0 | L43: 0
H44: 0 | J44: 0 | L44: 0
H45: 0 | J45: 0 | L45: 0
H46: 0 | J46: 0 | L46: 0
H47: 0 | J47: 0 | L47: 0
H48: 0 | J48: 0 | L48: 0
A49: OBS:. | F49: TOTAIS | G49: =SUM(H17:H48) -> 0 | I49: =SUM(J17:J48) -> 0 | K49: =SUM(L17:L48) -> 0
A51: DATA | G51: APROVADO
A52: 2013-05-28

Sheet 4.3
A1: =+'itens projetos'!B28 -> Adesivos
A2: VERBA | B2: VR. NOTA | C2: N º CHEQUE | D2: DATA DA SAÍDA | E2: DESCRIÇÃO DA SAÍDA | F2: NF | G2: DATA DA NOTA | H2: QTDADE
A3: =+'itens projetos'!H28 -> 2000
A7: =SUM(A3:A6) -> 2000 | B7: =SUM(B3:B6) -> 0
A8: SALDO | B8: =A7-B7 -> 2000
A10: COTAÇÃO DE MATERIAIS E SERVIÇOS
G13: 1 - Fornecedor | I13: 2 - Fornecedor | K13: 3 - Fornecedor
A14: =+'itens projetos'!A2:L2 -> (DE ARTE ) A COLEÇÃO - COLETÂNEA DE OBRAS DE ARTE DE ARTISTAS BRASILEIROS PRONAC 164867
A16: QTDE | B16: UNI | C16: COD | D16: DESCRIÇÃO DO MATERIAL | G16: V. UNI | H16: V. TOTAL | I16: V. UNI | J16: V. TOTAL | K16: V. UNI | L16: V. TOTAL
C17: 4.3 | H17: =A17*G17 -> 0 | L17: =K17*A17 -> 0
H18: =A18*G18 -> 0 | J18: =I18*A18 -> 0 | L18: =K18*A18 -> 0
H19: 0 | J19: 0 | L19: 0
H20: 0 | J20: 0 | L20: 0
H21: 0 | J21: 0 | L21: 0
H22: 0 | J22: 0 | L22: 0
H23: 0 | J23: 0 | L23: 0
H24: 0 | J24: 0 | L24: 0
H25: 0 | J25: 0 | L25: 0
H26: 0 | J26: 0 | L26: 0
H27: 0 | J27: 0 | L27: 0
H28: 0 | J28: 0 | L28: 0
H29: 0 | J29: 0 | L29: 0
H30: 0 | J30: 0 | L30: 0
H31: 0 | J31: 0 | L31: 0
H32: 0 | J32: 0 | L32: 0
H33: 0 | J33: 0 | L33: 0
H34: 0 | J34: 0 | L34: 0
H35: 0 | J35: 0 | L35: 0
H36: 0 | J36: 0 | L36: 0
H37: 0 | J37: 0 | L37: 0
H38: 0 | J38: 0 | L38: 0
H39: 0 | J39: 0 | L39: 0
H40: 0 | J40: 0 | L40: 0
H41: 0 | J41: 0 | L41: 0
H42: 0 | J42: 0 | L42: 0
H43: 0 | J43: 0 | L43: 0
H44: 0 | J44: 0 | L44: 0
H45: 0 | J45: 0 | L45: 0
H46: 0 | J46: 0 | L46: 0
H47: 0 | J47: 0 | L47: 0
H48: 0 | J48: 0 | L48: 0
A49: OBS:. | F49: TOTAIS | G49: =SUM(H17:H48) -> 0 | I49: =SUM(J17:J48) -> 0 | K49: =SUM(L17:L48) -> 0
A51: DATA | G51: APROVADO
A52: 2013-05-28

Sheet 4.10
A1: =+'itens projetos'!B29 -> Assistente de produção
A2: VERBA | B2: VR. NOTA | C2: N º CHEQUE | D2: DATA DA SAÍDA | E2: DESCRIÇÃO DA SAÍDA | F2: NF | G2: DATA DA NOTA | H2: QTDADE
A3: =+'itens projetos'!H29 -> 1260
A20: =SUM(A3:A5) -> 1260 | B20: =SUM(B3:B19) -> 0
A21: SALDO | B21: =A20-B20 -> 1260
A25: COTAÇÃO DE MATERIAIS E SERVIÇOS
G28: 1 - Fornecedor | I28: 2 - Fornecedor | K28: 3 - Fornecedor
A29: =+'itens projetos'!A2:L2 -> (DE ARTE ) A COLEÇÃO - COLETÂNEA DE OBRAS DE ARTE DE ARTISTAS BRASILEIROS PRONAC 164867
A31: QTDE | B31: UNI | C31: COD | D31: DESCRIÇÃO DO MATERIAL | G31: V. UNI | H31: V. TOTAL | I31: V. UNI | J31: V. TOTAL | K31: V. UNI | L31: V. TOTAL
C32: 1.5 | H32: =A32*G32 -> 0 | J32: =I32*A32 -> 0 | L32: =K32*A32 -> 0
H33: =A33*G33 -> 0 | J33: =I33*A33 -> 0 | L33: =K33*A33 -> 0
H34: 0 | J34: 0 | L34: 0
H35: 0 | J35: 0 | L35: 0
H36: 0 | J36: 0 | L36: 0
H37: 0 | J37: 0 | L37: 0
H38: 0 | J38: 0 | L38: 0
H39: 0 | J39: 0 | L39: 0
H40: 0 | J40: 0 | L40: 0
H41: 0 | J41: 0 | L41: 0
H42: 0 | J42: 0 | L42: 0
H43: 0 | J43: 0 | L43: 0
H44: 0 | J44: 0 | L44: 0
H45: 0 | J45: 0 | L45: 0
H46: 0 | J46: 0 | L46: 0
H47: 0 | J47: 0 | L47: 0
H48: 0 | J48: 0 | L48: 0
H49: 0 | J49: 0 | L49: 0
H50: 0 | J50: 0 | L50: 0
H51: 0 | J51: 0 | L51: 0
H52: 0 | J52: 0 | L52: 0
H53: 0 | J53: 0 | L53: 0
H54: 0 | J54: 0 | L54: 0
H55: 0 | J55: 0 | L55: 0
H56: 0 | J56: 0 | L56: 0
H57: 0 | J57: 0 | L57: 0
H58: 0 | J58: 0 | L58: 0
H59: 0 | J59: 0 | L59: 0
H60: 0 | J60: 0 | L60: 0
H61: 0 | J61: 0 | L61: 0
H62: 0 | J62: 0 | L62: 0
H63: 0 | J63: 0 | L63: 0
A64: OBS:. | F64: TOTAIS | G64: =SUM(H32:H63) -> 0 | I64: =SUM(J32:J63) -> 0 | K64: =SUM(L32:L63) -> 0
A66: DATA | I66: APROVADO

Sheet 5.1
A1: =+'itens projetos'!B30 -> Impressão em braile
A2: VERBA | B2: VR. NOTA | C2: N º CHEQUE | D2: DATA DA SAÍDA | E2: DESCRIÇÃO DA SAÍDA | F2: NF | G2: DATA DA NOTA | H2: QTDADE
A3: =+'itens projetos'!H30 -> 9800
A7: =SUM(A3:A6) -> 9800 | B7: =SUM(B3:B6) -> 0
A8: SALDO | B8: =A7-B7 -> 9800
A10: COTAÇÃO DE MATERIAIS E SERVIÇOS
G13: 1 - Fornecedor | I13: 2 - Fornecedor | K13: 3 - Fornecedor
A14: =+'itens projetos'!A2:L2 -> (DE ARTE ) A COLEÇÃO - COLETÂNEA DE OBRAS DE ARTE DE ARTISTAS BRASILEIROS PRONAC 164867
A16: QTDE | B16: UNI | C16: COD | D16: DESCRIÇÃO DO MATERIAL | G16: V. UNI | H16: V. TOTAL | I16: V. UNI | J16: V. TOTAL | K16: V. UNI | L16: V. TOTAL
C17: 4.3 | H17: =A17*G17 -> 0 | L17: =K17*A17 -> 0
H18: =A18*G18 -> 0 | J18: =I18*A18 -> 0 | L18: =K18*A18 -> 0
H19: 0 | J19: 0 | L19: 0
H20: 0 | J20: 0 | L20: 0
H21: 0 | J21: 0 | L21: 0
H22: 0 | J22: 0 | L22: 0
H23: 0 | J23: 0 | L23: 0
H24: 0 | J24: 0 | L24: 0
H25: 0 | J25: 0 | L25: 0
H26: 0 | J26: 0 | L26: 0
H27: 0 | J27: 0 | L27: 0
H28: 0 | J28: 0 | L28: 0
H29: 0 | J29: 0 | L29: 0
H30: 0 | J30: 0 | L30: 0
H31: 0 | J31: 0 | L31: 0
H32: 0 | J32: 0 | L32: 0
H33: 0 | J33: 0 | L33: 0
H34: 0 | J34: 0 | L34: 0
H35: 0 | J35: 0 | L35: 0
H36: 0 | J36: 0 | L36: 0
H37: 0 | J37: 0 | L37: 0
H38: 0 | J38: 0 | L38: 0
H39: 0 | J39: 0 | L39: 0
H40: 0 | J40: 0 | L40: 0
H41: 0 | J41: 0 | L41: 0
H42: 0 | J42: 0 | L42: 0
H43: 0 | J43: 0 | L43: 0
H44: 0 | J44: 0 | L44: 0
H45: 0 | J45: 0 | L45: 0
H46: 0 | J46: 0 | L46: 0
H47: 0 | J47: 0 | L47: 0
H48: 0 | J48: 0 | L48: 0
A49: OBS:. | F49: TOTAIS | G49: =SUM(H17:H48) -> 0 | I49: =SUM(J17:J48) -> 0 | K49: =SUM(L17:L48) -> 0
A51: DATA | G51: APROVADO
A52: 2013-05-28

Sheet 6.2
A1: =+'itens projetos'!B31 -> Limpeza final
A2: VERBA | B2: VR. NOTA | C2: N º CHEQUE | D2: DATA DA SAÍDA | E2: DESCRIÇÃO DA SAÍDA | F2: NF | G2: DATA DA NOTA | H2: QTDADE
A3: =+'itens projetos'!H31 -> 500
A7: =SUM(A3:A6) -> 500 | B7: =SUM(B3:B6) -> 0
A8: SALDO | B8: =A7-B7 -> 500
A10: COTAÇÃO DE MATERIAIS E SERVIÇOS
G13: 1 - Fornecedor | I13: 2 - Fornecedor | K13: 3 - Fornecedor
A14: =+'itens projetos'!A2:L2 -> (DE ARTE ) A COLEÇÃO - COLETÂNEA DE OBRAS DE ARTE DE ARTISTAS BRASILEIROS PRONAC 164867
A16: QTDE | B16: UNI | C16: COD | D16: DESCRIÇÃO DO MATERIAL | G16: V. UNI | H16: V. TOTAL | I16: V. UNI | J16: V. TOTAL | K16: V. UNI | L16: V. TOTAL
C17: 4.3 | H17: =A17*G17 -> 0 | L17: =K17*A17 -> 0
H18: =A18*G18 -> 0 | J18: =I18*A18 -> 0 | L18: =K18*A18 -> 0
H19: 0 | J19: 0 | L19: 0
H20: 0 | J20: 0 | L20: 0
H21: 0 | J21: 0 | L21: 0
H22: 0 | J22: 0 | L22: 0
H23: 0 | J23: 0 | L23: 0
H24: 0 | J24: 0 | L24: 0
H25: 0 | J25: 0 | L25: 0
H26: 0 | J26: 0 | L26: 0
H27: 0 | J27: 0 | L27: 0
H28: 0 | J28: 0 | L28: 0
H29: 0 | J29: 0 | L29: 0
H30: 0 | J30: 0 | L30: 0
H31: 0 | J31: 0 | L31: 0
H32: 0 | J32: 0 | L32: 0
H33: 0 | J33: 0 | L33: 0
H34: 0 | J34: 0 | L34: 0
H35: 0 | J35: 0 | L35: 0
H36: 0 | J36: 0 | L36: 0
H37: 0 | J37: 0 | L37: 0
H38: 0 | J38: 0 | L38: 0
H39: 0 | J39: 0 | L39: 0
H40: 0 | J40: 0 | L40: 0
H41: 0 | J41: 0 | L41: 0
H42: 0 | J42: 0 | L42: 0
H43: 0 | J43: 0 | L43: 0
H44: 0 | J44: 0 | L44: 0
H45: 0 | J45: 0 | L45: 0
H46: 0 | J46: 0 | L46: 0
H47: 0 | J47: 0 | L47: 0
H48: 0 | J48: 0 | L48: 0
A49: OBS:. | F49: TOTAIS | G49: =SUM(H17:H48) -> 0 | I49: =SUM(J17:J48) -> 0 | K49: =SUM(L17:L48) -> 0
A51: DATA | G51: APROVADO
A52: 2013-05-28

Sheet 6.3
A1: =+'itens projetos'!B32 -> Locação de Espaço para Exposição
A2: VERBA | B2: VR. NOTA | C2: N º CHEQUE | D2: DATA DA SAÍDA | E2: DESCRIÇÃO DA SAÍDA | F2: NF | G2: DATA DA NOTA | H2: QTDADE
A3: =+'itens projetos'!H32 -> 5000
A7: =SUM(A3:A6) -> 5000 | B7: =SUM(B3:B6) -> 0
A8: SALDO | B8: =A7-B7 -> 5000
A10: COTAÇÃO DE MATERIAIS E SERVIÇOS
G13: 1 - Fornecedor | I13: 2 - Fornecedor | K13: 3 - Fornecedor
A14: =+'itens projetos'!A2:L2 -> (DE ARTE ) A COLEÇÃO - COLETÂNEA DE OBRAS DE ARTE DE ARTISTAS BRASILEIROS PRONAC 164867
A16: QTDE | B16: UNI | C16: COD | D16: DESCRIÇÃO DO MATERIAL | G16: V. UNI | H16: V. TOTAL | I16: V. UNI | J16: V. TOTAL | K16: V. UNI | L16: V. TOTAL
C17: 4.3 | H17: =A17*G17 -> 0 | L17: =K17*A17 -> 0
H18: =A18*G18 -> 0 | J18: =I18*A18 -> 0 | L18: =K18*A18 -> 0
H19: 0 | J19: 0 | L19: 0
H20: 0 | J20: 0 | L20: 0
H21: 0 | J21: 0 | L21: 0
H22: 0 | J22: 0 | L22: 0
H23: 0 | J23: 0 | L23: 0
H24: 0 | J24: 0 | L24: 0
H25: 0 | J25: 0 | L25: 0
H26: 0 | J26: 0 | L26: 0
H27: 0 | J27: 0 | L27: 0
H28: 0 | J28: 0 | L28: 0
H29: 0 | J29: 0 | L29: 0
H30: 0 | J30: 0 | L30: 0
H31: 0 | J31: 0 | L31: 0
H32: 0 | J32: 0 | L32: 0
H33: 0 | J33: 0 | L33: 0
H34: 0 | J34: 0 | L34: 0
H35: 0 | J35: 0 | L35: 0
H36: 0 | J36: 0 | L36: 0
H37: 0 | J37: 0 | L37: 0
H38: 0 | J38: 0 | L38: 0
H39: 0 | J39: 0 | L39: 0
H40: 0 | J40: 0 | L40: 0
H41: 0 | J41: 0 | L41: 0
H42: 0 | J42: 0 | L42: 0
H43: 0 | J43: 0 | L43: 0
H44: 0 | J44: 0 | L44: 0
H45: 0 | J45: 0 | L45: 0
H46: 0 | J46: 0 | L46: 0
H47: 0 | J47: 0 | L47: 0
H48: 0 | J48: 0 | L48: 0
A49: OBS:. | F49: TOTAIS | G49: =SUM(H17:H48) -> 0 | I49: =SUM(J17:J48) -> 0 | K49: =SUM(L17:L48) -> 0
A51: DATA | G51: APROVADO
A52: 2013-05-28

Sheet 6.4
A1: =+'itens projetos'!B33 -> Locação de Mobiliário
A2: VERBA | B2: VR. NOTA | C2: N º CHEQUE | D2: DATA DA SAÍDA | E2: DESCRIÇÃO DA SAÍDA | F2: NF | G2: DATA DA NOTA | H2: QTDADE
A3: =+'itens projetos'!H33 -> 3000
A13: =SUM(A3:A7) -> 3000 | B13: =SUM(B3:B12) -> 0
A14: SALDO | B14: =A13-B13 -> 3000
A18: COTAÇÃO DE MATERIAIS E SERVIÇOS
G21: 1 - Fornecedor | I21: 2 - Fornecedor | K21: 3 - Fornecedor
A22: =+'itens projetos'!A2:L2 -> (DE ARTE ) A COLEÇÃO - COLETÂNEA DE OBRAS DE ARTE DE ARTISTAS BRASILEIROS PRONAC 164867 | G22: BRIC A BRAC | I22: YUTAKA TOYOTA | K22: PANORAMA MOLDURAS
G23: CNPJ : 48.608.020/0001-76 | I23: CNPJ : 07.429.452/0001-32 | K23: CNPJ : 07.125.321/0002-42
A24: QTDE | B24: UNI | C24: COD | D24: DESCRIÇÃO DO MATERIAL | G24: V. UNI | H24: V. TOTAL | I24: V. UNI | J24: V. TOTAL | K24: V. UNI | L24: V. TOTAL
A25: 1 | B25: UNIDADE | C25: 29 | D25: Painéis modulados | G25: 10000 | H25: =A25*G25 -> 10000 | I25: 10520 | J25: =I25*A25 -> 10520 | K25: 11000 | L25: =K25*A25 -> 11000
H26: =A26*G26 -> 0 | J26: =I26*A26 -> 0 | L26: =K26*A26 -> 0
H27: 0 | J27: 0 | L27: 0
H28: 0 | J28: 0 | L28: 0
H29: 0 | J29: 0 | L29: 0
H30: 0 | J30: 0 | L30: 0
H31: 0 | J31: 0 | L31: 0
H32: 0 | J32: 0 | L32: 0
H33: 0 | J33: 0 | L33: 0
H34: 0 | J34: 0 | L34: 0
H35: 0 | J35: 0 | L35: 0
H36: 0 | J36: 0 | L36: 0
H37: 0 | J37: 0 | L37: 0
H38: 0 | J38: 0 | L38: 0
H39: 0 | J39: 0 | L39: 0
H40: 0 | J40: 0 | L40: 0
H41: 0 | J41: 0 | L41: 0
H42: 0 | J42: 0 | L42: 0
H43: 0 | J43: 0 | L43: 0
H44: 0 | J44: 0 | L44: 0
H45: 0 | J45: 0 | L45: 0
H46: 0 | J46: 0 | L46: 0
H47: 0 | J47: 0 | L47: 0
H48: 0 | J48: 0 | L48: 0
H49: 0 | J49: 0 | L49: 0
H50: 0 | J50: 0 | L50: 0
H51: 0 | J51: 0 | L51: 0
H52: 0 | J52: 0 | L52: 0
H53: 0 | J53: 0 | L53: 0
H54: 0 | J54: 0 | L54: 0
H55: 0 | J55: 0 | L55: 0
H56: 0 | J56: 0 | L56: 0
A57: OBS:. | F57: TOTAIS | G57: =SUM(H25:H56) -> 10000 | I57: =SUM(J25:J56) -> 10520 | K57: =SUM(L25:L56) -> 11000
A59: DATA | G59: APROVADO
A60: 2016-01-04

Sheet 6.5
A1: =+'itens projetos'!B34 -> Painéis modulados
A2: VERBA | B2: VR. NOTA | C2: N º CHEQUE | D2: DATA DA SAÍDA | E2: DESCRIÇÃO DA SAÍDA | F2: NF | G2: DATA DA NOTA | H2: QTDADE
A3: =+'itens projetos'!H34 -> 5000
A20: =SUM(A3:A7) -> 5000 | B20: =SUM(B3:B19) -> 0
A21: SALDO | B21: =A20-B20 -> 5000
A26: COTAÇÃO DE MATERIAIS E SERVIÇOS
G29: 1 - Fornecedor | I29: 2 - Fornecedor | K29: 3 - Fornecedor
A30: =+'itens projetos'!A2:L2 -> (DE ARTE ) A COLEÇÃO - COLETÂNEA DE OBRAS DE ARTE DE ARTISTAS BRASILEIROS PRONAC 164867
A32: QTDE | B32: UNI | C32: COD | D32: DESCRIÇÃO DO MATERIAL | G32: V. UNI | H32: V. TOTAL | I32: V. UNI | J32: V. TOTAL | K32: V. UNI | L32: V. TOTAL
C33: 1.6 | H33: =A33*G33 -> 0 | J33: =I33*A33 -> 0 | L33: =K33*A33 -> 0
H34: =A34*G34 -> 0 | J34: =I34*A34 -> 0 | L34: =K34*A34 -> 0
H35: 0 | J35: 0 | L35: 0
H36: 0 | J36: 0 | L36: 0
H37: 0 | J37: 0 | L37: 0
H38: 0 | J38: 0 | L38: 0
H39: 0 | J39: 0 | L39: 0
H40: 0 | J40: 0 | L40: 0
H41: 0 | J41: 0 | L41: 0
H42: 0 | J42: 0 | L42: 0
H43: 0 | J43: 0 | L43: 0
H44: 0 | J44: 0 | L44: 0
H45: 0 | J45: 0 | L45: 0
H46: 0 | J46: 0 | L46: 0
H47: 0 | J47: 0 | L47: 0
H48: 0 | J48: 0 | L48: 0
H49: 0 | J49: 0 | L49: 0
H50: 0 | J50: 0 | L50: 0
H51: 0 | J51: 0 | L51: 0
H52: 0 | J52: 0 | L52: 0
H53: 0 | J53: 0 | L53: 0
H54: 0 | J54: 0 | L54: 0
H55: 0 | J55: 0 | L55: 0
H56: 0 | J56: 0 | L56: 0
H57: 0 | J57: 0 | L57: 0
H58: 0 | J58: 0 | L58: 0
H59: 0 | J59: 0 | L59: 0
H60: 0 | J60: 0 | L60: 0
H61: 0 | J61: 0 | L61: 0
H62: 0 | J62: 0 | L62: 0
H63: 0 | J63: 0 | L63: 0
H64: 0 | J64: 0 | L64: 0
A65: OBS:. | F65: TOTAIS | G65: =SUM(H33:H64) -> 0 | I65: =SUM(J33:J64) -> 0 | K65: =SUM(L33:L64) -> 0
A67: DATA

Sheet 6.6
A1: =+'itens projetos'!B35 -> Recepcionista
A2: VERBA | B2: VR. NOTA | C2: N º CHEQUE | D2: DATA DA SAÍDA | E2: DESCRIÇÃO DA SAÍDA | F2: NF | G2: DATA DA NOTA | H2: QTDADE
A3: =+'itens projetos'!H35 -> 240
A11: =SUM(A3:A10) -> 240 | B11: =SUM(B3:B10) -> 0
A12: SALDO | B12: =A11-B11 -> 240
A17: COTAÇÃO DE MATERIAIS E SERVIÇOS
G20: 1 - Fornecedor | I20: 2 - Fornecedor | K20: 3 - Fornecedor
A21: =+'itens projetos'!A2:L2 -> (DE ARTE ) A COLEÇÃO - COLETÂNEA DE OBRAS DE ARTE DE ARTISTAS BRASILEIROS PRONAC 164867
A23: QTDE | B23: UNI | C23: COD | D23: DESCRIÇÃO DO MATERIAL | G23: V. UNI | H23: V. TOTAL | I23: V. UNI | J23: V. TOTAL | K23: V. UNI | L23: V. TOTAL
A24: 12 | C24: 7.1 | D24: cartucho colorido | G24: 93.9 | H24: =A24*G24 -> 1126.8 | I24: 94 | J24: =I24*A24 -> 1128 | K24: 95 | L24: =K24*A24 -> 1140
H25: =A25*G25 -> 0 | J25: =I25*A25 -> 0 | L25: =K25*A25 -> 0
H26: 0 | J26: 0 | L26: 0
H27: 0 | J27: 0 | L27: 0
H28: 0 | J28: 0 | L28: 0
H29: 0 | J29: 0 | L29: 0
H30: 0 | J30: 0 | L30: 0
H31: 0 | J31: 0 | L31: 0
H32: 0 | J32: 0 | L32: 0
H33: 0 | J33: 0 | L33: 0
H34: 0 | J34: 0 | L34: 0
H35: 0 | J35: 0 | L35: 0
H36: 0 | J36: 0 | L36: 0
H37: 0 | J37: 0 | L37: 0
H38: 0 | J38: 0 | L38: 0
H39: 0 | J39: 0 | L39: 0
H40: 0 | J40: 0 | L40: 0
H41: 0 | J41: 0 | L41: 0
H42: 0 | J42: 0 | L42: 0
H43: 0 | J43: 0 | L43: 0
H44: 0 | J44: 0 | L44: 0
H45: 0 | J45: 0 | L45: 0
H46: 0 | J46: 0 | L46: 0
H47: 0 | J47: 0 | L47: 0
H48: 0 | J48: 0 | L48: 0
H49: 0 | J49: 0 | L49: 0
H50: 0 | J50: 0 | L50: 0
H51: 0 | J51: 0 | L51: 0
H52: 0 | J52: 0 | L52: 0
H53: 0 | J53: 0 | L53: 0
H54: 0 | J54: 0 | L54: 0
H55: 0 | J55: 0 | L55: 0
A56: OBS:. | F56: TOTAIS | G56: =SUM(H24:H55) -> 1126.8 | I56: =SUM(J24:J55) -> 1128 | K56: =SUM(L24:L55) -> 1140
A58: DATA | G58: APROVADO
A59: 2014-04-02

Sheet 6.7
A1: =+'itens projetos'!B36 -> Técnico de audiovisual
A2: VERBA | B2: VR. NOTA | C2: N º CHEQUE | D2: DATA DA SAÍDA | E2: DESCRIÇÃO DA SAÍDA | F2: NF | G2: DATA DA NOTA | H2: QTDADE
A3: =+'itens projetos'!H36 -> 600
A11: =SUM(A3:A7) -> 600 | B11: =SUM(B3:B9) -> 0
A12: SALDO | B12: =A11-B11 -> 600
A16: COTAÇÃO DE MATERIAIS E SERVIÇOS
G19: 1 - Fornecedor | I19: 2 - Fornecedor | K19: 3 - Fornecedor
A20: =+'itens projetos'!A2:L2 -> (DE ARTE ) A COLEÇÃO - COLETÂNEA DE OBRAS DE ARTE DE ARTISTAS BRASILEIROS PRONAC 164867
A22: QTDE | B22: UNI | C22: COD | D22: DESCRIÇÃO DO MATERIAL | G22: V. UNI | H22: V. TOTAL | I22: V. UNI | J22: V. TOTAL | K22: V. UNI | L22: V. TOTAL
C23: 7.2 | H23: =A23*G23 -> 0 | J23: =I23*A23 -> 0 | L23: =K23*A23 -> 0
H24: =A24*G24 -> 0 | J24: =I24*A24 -> 0 | L24: =K24*A24 -> 0
H25: 0 | J25: 0 | L25: 0
H26: 0 | J26: 0 | L26: 0
H27: 0 | J27: 0 | L27: 0
H28: 0 | J28: 0 | L28: 0
H29: 0 | J29: 0 | L29: 0
H30: 0 | J30: 0 | L30: 0
H31: 0 | J31: 0 | L31: 0
H32: 0 | J32: 0 | L32: 0
H33: 0 | J33: 0 | L33: 0
H34: 0 | J34: 0 | L34: 0
H35: 0 | J35: 0 | L35: 0
H36: 0 | J36: 0 | L36: 0
H37: 0 | J37: 0 | L37: 0
H38: 0 | J38: 0 | L38: 0
H39: 0 | J39: 0 | L39: 0
H40: 0 | J40: 0 | L40: 0
H41: 0 | J41: 0 | L41: 0
H42: 0 | J42: 0 | L42: 0
H43: 0 | J43: 0 | L43: 0
H44: 0 | J44: 0 | L44: 0
H45: 0 | J45: 0 | L45: 0
H46: 0 | J46: 0 | L46: 0
H47: 0 | J47: 0 | L47: 0
H48: 0 | J48: 0 | L48: 0
H49: 0 | J49: 0 | L49: 0
H50: 0 | J50: 0 | L50: 0
H51: 0 | J51: 0 | L51: 0
H52: 0 | J52: 0 | L52: 0
H53: 0 | J53: 0 | L53: 0
H54: 0 | J54: 0 | L54: 0
A55: OBS:. | F55: TOTAIS | G55: =SUM(H23:H54) -> 0 | I55: =SUM(J23:J54) -> 0 | K55: =SUM(L23:L54) -> 0
A57: DATA | G57: APROVADO
A58: 2014-04-02

Sheet 6.8
A1: =+'itens projetos'!B37 -> Transporte de material
A2: VERBA | B2: VR. NOTA | C2: N º CHEQUE | D2: DATA DA SAÍDA | E2: DESCRIÇÃO DA SAÍDA | F2: NF | G2: DATA DA NOTA | H2: QTDADE
A3: =+'itens projetos'!H37 -> 3800
A11: =SUM(A3:A10) -> 3800 | B11: =SUM(B3:B10) -> 0
A12: SALDO | B12: =A11-B11 -> 3800
A17: COTAÇÃO DE MATERIAIS E SERVIÇOS
G20: 1 - Fornecedor | I20: 2 - Fornecedor | K20: 3 - Fornecedor
A21: =+'itens projetos'!A2:L2 -> (DE ARTE ) A COLEÇÃO - COLETÂNEA DE OBRAS DE ARTE DE ARTISTAS BRASILEIROS PRONAC 164867 | G21: IPSIS | I21: REVELAÇÃO | K21: UPRISE
G22: CNPJ: 61.407.078/0001-10 | I22: CNPJ: 08.288.515/0001-40 | K22: CNPJ: 16.887.262/0001-50
A23: QTDE | B23: UNI | C23: COD | D23: DESCRIÇÃO DO MATERIAL | G23: V. UNI | H23: V. TOTAL | I23: V. UNI | J23: V. TOTAL | K23: V. UNI | L23: V. TOTAL
A24: 3000 | B24: UNIDADE | C24: 33 | D24: 3.000 Impressões. | G24: 42 | H24: =A24*G24 -> 126000 | I24: 45 | J24: =I24*A24 -> 135000 | K24: 43.5 | L24: =K24*A24 -> 130500
H25: =A25*G25 -> 0 | J25: =I25*A25 -> 0 | L25: =K25*A25 -> 0
H26: 0 | J26: 0 | L26: 0
H27: 0 | J27: 0 | L27: 0
H28: 0 | J28: 0 | L28: 0
H29: 0 | J29: 0 | L29: 0
H30: 0 | J30: 0 | L30: 0
H31: 0 | J31: 0 | L31: 0
H32: 0 | J32: 0 | L32: 0
H33: 0 | J33: 0 | L33: 0
H34: 0 | J34: 0 | L34: 0
H35: 0 | J35: 0 | L35: 0
H36: 0 | J36: 0 | L36: 0
H37: 0 | J37: 0 | L37: 0
H38: 0 | J38: 0 | L38: 0
H39: 0 | J39: 0 | L39: 0
H40: 0 | J40: 0 | L40: 0
H41: 0 | J41: 0 | L41: 0
H42: 0 | J42: 0 | L42: 0
H43: 0 | J43: 0 | L43: 0
H44: 0 | J44: 0 | L44: 0
H45: 0 | J45: 0 | L45: 0
H46: 0 | J46: 0 | L46: 0
H47: 0 | J47: 0 | L47: 0
H48: 0 | J48: 0 | L48: 0
H49: 0 | J49: 0 | L49: 0
H50: 0 | J50: 0 | L50: 0
H51: 0 | J51: 0 | L51: 0
H52: 0 | J52: 0 | L52: 0
H53: 0 | J53: 0 | L53: 0
H54: 0 | J54: 0 | L54: 0
H55: 0 | J55: 0 | L55: 0
A56: OBS:. | F56: TOTAIS | G56: =SUM(H24:H55) -> 126000 | I56: =SUM(J24:J55) -> 135000 | K56: =SUM(L24:L55) -> 130500
A58: DATA | G58: APROVADO
A59: 2016-01-04

Sheet 6.9
A1: =+'itens projetos'!B38 -> Assessoria Jurídica (Contratos Inclusive)
A2: VERBA | B2: VR. NOTA | C2: N º CHEQUE | D2: DATA DA SAÍDA | E2: DESCRIÇÃO DA SAÍDA | F2: NF | G2: DATA DA NOTA | H2: QTDADE
A3: =+'itens projetos'!H38 -> 3000 | B3: 1500 | C3: 850009 | D3: 2017-11-06 | E3: BRITO RODRIGUES ADVOGADOS | F3: NF 0609 | G3: 2017-11-03
A11: =SUM(A3:A7) -> 3000 | B11: =SUM(B3:B9) -> 1500
A12: SALDO | B12: =A11-B11 -> 1500
A16: COTAÇÃO DE MATERIAIS E SERVIÇOS
G19: 1 - Fornecedor | I19: 2 - Fornecedor | K19: 3 - Fornecedor
A20: =+'itens projetos'!A2:L2 -> (DE ARTE ) A COLEÇÃO - COLETÂNEA DE OBRAS DE ARTE DE ARTISTAS BRASILEIROS PRONAC 164867 | G20: JAIRO GRAFICO | I20: GRAFICA REVELAÇÃO | K20: ZKAT
G21: CNPJ: 09.649.886/0001-73 | I21: CNPJ: 08.288.515/0001-40 | K21: CNPJ: 07.9712.324/0001-30
A22: QTDE | B22: UNI | C22: COD | D22: DESCRIÇÃO DO MATERIAL | G22: V. UNI | H22: V. TOTAL | I22: V. UNI | J22: V. TOTAL | K22: V. UNI | L22: V. TOTAL
A23: 1 | C23: 34 | D23: Projet Grafico | G23: 3000 | H23: =A23*G23 -> 3000 | I23: 3200 | J23: =I23*A23 -> 3200 | K23: 3500 | L23: =K23*A23 -> 3500
H24: =A24*G24 -> 0 | J24: =I24*A24 -> 0 | L24: =K24*A24 -> 0
H25: 0 | J25: 0 | L25: 0
H26: 0 | J26: 0 | L26: 0
H27: 0 | J27: 0 | L27: 0
H28: 0 | J28: 0 | L28: 0
H29: 0 | J29: 0 | L29: 0
H30: 0 | J30: 0 | L30: 0
H31: 0 | J31: 0 | L31: 0
H32: 0 | J32: 0 | L32: 0
H33: 0 | J33: 0 | L33: 0
H34: 0 | J34: 0 | L34: 0
H35: 0 | J35: 0 | L35: 0
H36: 0 | J36: 0 | L36: 0
H37: 0 | J37: 0 | L37: 0
H38: 0 | J38: 0 | L38: 0
H39: 0 | J39: 0 | L39: 0
H40: 0 | J40: 0 | L40: 0
H41: 0 | J41: 0 | L41: 0
H42: 0 | J42: 0 | L42: 0
H43: 0 | J43: 0 | L43: 0
H44: 0 | J44: 0 | L44: 0
H45: 0 | J45: 0 | L45: 0
H46: 0 | J46: 0 | L46: 0
H47: 0 | J47: 0 | L47: 0
H48: 0 | J48: 0 | L48: 0
H49: 0 | J49: 0 | L49: 0
H50: 0 | J50: 0 | L50: 0
H51: 0 | J51: 0 | L51: 0
H52: 0 | J52: 0 | L52: 0
H53: 0 | J53: 0 | L53: 0
H54: 0 | J54: 0 | L54: 0
A55: OBS:. | F55: TOTAIS | G55: =SUM(H23:H54) -> 3000 | I55: =SUM(J23:J54) -> 3200 | K55: =SUM(L23:L54) -> 3500
A57: DATA | G57: APROVADO
A58: 2015-01-06

Sheet 6.10
A1: =+'itens projetos'!B39 -> Assistente administrativo
A2: VERBA | B2: VR. NOTA | C2: N º CHEQUE | D2: DATA DA SAÍDA | E2: DESCRIÇÃO DA SAÍDA | F2: NF | G2: DATA DA NOTA | H2: QTDADE
A3: =+'itens projetos'!H39 -> 8400 | B3: 1200 | C3: 850005 | D3: 2017-10-24 | E3: COR E TAL- OFICINAS DE ARTE EVENTOS LTDA | F3: NF 0974 | G3: 2017-10-23
B4: 1200 | C4: 850008 | D4: 2017-11-01 | E4: COR E TAL- OFICINAS DE ARTE EVENTOS LTDA | F4: NF 0985 | G4: 2017-11-06
A11: =SUM(A3:A10) -> 8400 | B11: =SUM(B3:B10) -> 2400
A12: SALDO | B12: =A11-B11 -> 6000
A17: COTAÇÃO DE MATERIAIS E SERVIÇOS
G20: 1 - Fornecedor | I20: 2 - Fornecedor | K20: 3 - Fornecedor
A21: =+'itens projetos'!A2:L2 -> (DE ARTE ) A COLEÇÃO - COLETÂNEA DE OBRAS DE ARTE DE ARTISTAS BRASILEIROS PRONAC 164867 | G21: EBRS | I21: JAIRO | K21: UPRISEPRINT
G22: CNPJ: 09.120.592/0001-50 | I22: CNPJ: 09.649.886/0001-73 | K22: CNPJ: 16.887.262/0001-50
A23: QTDE | B23: UNI | C23: COD | D23: DESCRIÇÃO DO MATERIAL | G23: V. UNI | H23: V. TOTAL | I23: V. UNI | J23: V. TOTAL | K23: V. UNI | L23: V. TOTAL
A24: 1 | B24: SERVIÇO | C24: 35 | D24: Prestação de serviços projeto gráfico | G24: 4000 | H24: =A24*G24 -> 4000 | I24: 3000 | J24: =I24*A24 -> 3000 | K24: 3600 | L24: =K24*A24 -> 3600
A25: 1 | B25: SERVIÇO | C25: 4 | D25: Prestação de serviços coordenação gráfica | G25: 6000 | H25: =A25*G25 -> 6000 | I25: 5000 | J25: =I25*A25 -> 5000 | K25: 5600 | L25: =K25*A25 -> 5600
H26: 0 | J26: 0 | L26: 0
H27: 0 | J27: 0 | L27: 0
H28: 0 | J28: 0 | L28: 0
H29: 0 | J29: 0 | L29: 0
H30: 0 | J30: 0 | L30: 0
H31: 0 | J31: 0 | L31: 0
H32: 0 | J32: 0 | L32: 0
H33: 0 | J33: 0 | L33: 0
H34: 0 | J34: 0 | L34: 0
H35: 0 | J35: 0 | L35: 0
H36: 0 | J36: 0 | L36: 0
H37: 0 | J37: 0 | L37: 0
H38: 0 | J38: 0 | L38: 0
H39: 0 | J39: 0 | L39: 0
H40: 0 | J40: 0 | L40: 0
H41: 0 | J41: 0 | L41: 0
H42: 0 | J42: 0 | L42: 0
H43: 0 | J43: 0 | L43: 0
H44: 0 | J44: 0 | L44: 0
H45: 0 | J45: 0 | L45: 0
H46: 0 | J46: 0 | L46: 0
H47: 0 | J47: 0 | L47: 0
H48: 0 | J48: 0 | L48: 0
H49: 0 | J49: 0 | L49: 0
H50: 0 | J50: 0 | L50: 0
H51: 0 | J51: 0 | L51: 0
H52: 0 | J52: 0 | L52: 0
H53: 0 | J53: 0 | L53: 0
H54: 0 | J54: 0 | L54: 0
H55: 0 | J55: 0 | L55: 0
A56: OBS:. | F56: TOTAIS | G56: =SUM(H24:H55) -> 10000 | I56: =SUM(J24:J55) -> 8000 | K56: =SUM(L24:L55) -> 9200
A58: DATA | I58: APROVADO
A59: 2016-01-04

Sheet 1.16
A1: =+'itens projetos'!B40 -> Contador
A2: VERBA | B2: VR. NOTA | C2: N º CHEQUE | D2: DATA DA SAÍDA | E2: DESCRIÇÃO DA SAÍDA | F2: NF | G2: DATA DA NOTA | H2: QTDADE
A3: =+'itens projetos'!H40 -> 4000 | B3: 2000 | C3: 850002 | D3: 2017-10-06 | E3: ATIVA CONTABIL LTDA | F3: NF 0051 | G3: 2017-09-29
A22: =SUM(A3:A8) -> 4000 | B22: =SUM(B3:B21) -> 2000
A23: SALDO | B23: =A22-B22 -> 2000
A27: COTAÇÃO DE MATERIAIS E SERVIÇOS
G30: 1 - Fornecedor | I30: 2 - Fornecedor | K30: 3 - Fornecedor
A31: =+'itens projetos'!A2:L2 -> (DE ARTE ) A COLEÇÃO - COLETÂNEA DE OBRAS DE ARTE DE ARTISTAS BRASILEIROS PRONAC 164867 | G31: Vertice | I31: LUCKY | K31: KLINTOWITZ
G32: CNPJ : 06.093.781/0001-92 | I32: CNPJ : 00.265.815/0001-00 | K32: CNPJ : 08.977.656/0001-70
A33: QTDE | B33: UNI | C33: COD | D33: DESCRIÇÃO DO MATERIAL | G33: V. UNI | H33: V. TOTAL | I33: V. UNI | J33: V. TOTAL | K33: V. UNI | L33: V. TOTAL
A34: 60 | B34: UNIDADE | C34: 10 | D34: Revisão de texto. | G34: 15 | H34: =A34*G34 -> 900 | I34: 18 | J34: =I34*A34 -> 1080 | K34: 20 | L34: =K34*A34 -> 1200
H35: =A35*G35 -> 0 | J35: =I35*A35 -> 0 | L35: =K35*A35 -> 0
H36: 0 | J36: 0 | L36: 0
H37: 0 | J37: 0 | L37: 0
H38: 0 | J38: 0 | L38: 0
H39: 0 | J39: 0 | L39: 0
H40: 0 | J40: 0 | L40: 0
H41: 0 | J41: 0 | L41: 0
H42: 0 | J42: 0 | L42: 0
H43: 0 | J43: 0 | L43: 0
H44: 0 | J44: 0 | L44: 0
H45: 0 | J45: 0 | L45: 0
H46: 0 | J46: 0 | L46: 0
H47: 0 | J47: 0 | L47: 0
H48: 0 | J48: 0 | L48: 0
H49: 0 | J49: 0 | L49: 0
H50: 0 | J50: 0 | L50: 0
H51: 0 | J51: 0 | L51: 0
H52: 0 | J52: 0 | L52: 0
H53: 0 | J53: 0 | L53: 0
H54: 0 | J54: 0 | L54: 0
H55: 0 | J55: 0 | L55: 0
H56: 0 | J56: 0 | L56: 0
H57: 0 | J57: 0 | L57: 0
H58: 0 | J58: 0 | L58: 0
H59: 0 | J59: 0 | L59: 0
H60: 0 | J60: 0 | L60: 0
H61: 0 | J61: 0 | L61: 0
H62: 0 | J62: 0 | L62: 0
H63: 0 | J63: 0 | L63: 0
H64: 0 | J64: 0 | L64: 0
H65: 0 | J65: 0 | L65: 0
A66: OBS:. | F66: TOTAIS | G66: =SUM(H34:H65) -> 900 | I66: =SUM(J34:J65) -> 1080 | K66: =SUM(L34:L65) -> 1200
A68: DATA | G68: APROVADO
A69: 2016-01-05

Sheet 1.1projeto
A1: =+'itens projetos'!B41 -> Material de escritório
A2: VERBA | B2: VR. NOTA | C2: N º CHEQUE | D2: DATA DA SAÍDA | E2: DESCRIÇÃO DA SAÍDA | F2: NF | G2: DATA DA NOTA | H2: QTDADE
A3: =+'itens projetos'!H41 -> 840
A15: =SUM(A3:A14) -> 840 | B15: =SUM(B3:B14) -> 0
A16: SALDO | B16: =A15-B15 -> 840
A20: COTAÇÃO DE MATERIAIS E SERVIÇOS
G23: 1 - Fornecedor | I23: 2 - Fornecedor | K23: 3 - Fornecedor
A24: =+'itens projetos'!A2:L2 -> (DE ARTE ) A COLEÇÃO - COLETÂNEA DE OBRAS DE ARTE DE ARTISTAS BRASILEIROS PRONAC 164867 | G24: COR E TAL | I24: PEOPLE | K24: BNER
G25: CNPJ: 10.875.118/0001-17 | I25: CNPJ: 13.933.022/0001-56 | K25: CNPJ: 82.344.425/0001-82
A26: QTDE | B26: UNI | C26: COD | D26: DESCRIÇÃO DO MATERIAL | G26: V. UNI | H26: V. TOTAL | I26: V. UNI | J26: V. TOTAL | K26: V. UNI | L26: V. TOTAL
A27: 6 | C27: 37 | D27: Assistente administrativo | G27: 1500 | H27: =A27*G27 -> 9000 | I27: 1600 | J27: =I27*A27 -> 9600 | K27: 1650 | L27: =K27*A27 -> 9900
H28: =A28*G28 -> 0 | J28: =I28*A28 -> 0 | L28: =K28*A28 -> 0
H29: 0 | J29: 0 | L29: 0
H30: 0 | J30: 0 | L30: 0
H31: 0 | J31: 0 | L31: 0
H32: 0 | J32: 0 | L32: 0
H33: 0 | J33: 0 | L33: 0
H34: 0 | J34: 0 | L34: 0
H35: 0 | J35: 0 | L35: 0
H36: 0 | J36: 0 | L36: 0
H37: 0 | J37: 0 | L37: 0
H38: 0 | J38: 0 | L38: 0
H39: 0 | J39: 0 | L39: 0
H40: 0 | J40: 0 | L40: 0
H41: 0 | J41: 0 | L41: 0
H42: 0 | J42: 0 | L42: 0
H43: 0 | J43: 0 | L43: 0
H44: 0 | J44: 0 | L44: 0
H45: 0 | J45: 0 | L45: 0
H46: 0 | J46: 0 | L46: 0
H47: 0 | J47: 0 | L47: 0
H48: 0 | J48: 0 | L48: 0
H49: 0 | J49: 0 | L49: 0
H50: 0 | J50: 0 | L50: 0
H51: 0 | J51: 0 | L51: 0
H52: 0 | J52: 0 | L52: 0
H53: 0 | J53: 0 | L53: 0
H54: 0 | J54: 0 | L54: 0
H55: 0 | J55: 0 | L55: 0
H56: 0 | J56: 0 | L56: 0
H57: 0 | J57: 0 | L57: 0
H58: 0 | J58: 0 | L58: 0
A59: OBS:. | F59: TOTAIS | G59: =SUM(H27:H58) -> 9000 | I59: =SUM(J27:J58) -> 9600 | K59: =SUM(L27:L58) -> 9900
A61: DATA | G61: APROVADO
A62: 2015-01-07

Sheet 38
A1: =+'itens projetos'!B42 -> Remuneração para captação de recursos
A2: VERBA | B2: VR. NOTA | C2: N º CHEQUE | D2: DATA DA SAÍDA | E2: DESCRIÇÃO DA SAÍDA | F2: NF | G2: DATA DA NOTA | H2: QTDADE
A3: =+'itens projetos'!H42 -> 35691.48 | B3: 27200 | C3: 850001 | D3: 2017-05-08 | E3: NATALIA MONACO DE CASTRO ASSESSORIA ESPORTIVA LTDA-ME | F3: NF 0480 | G3: 2017-05-05
A15: =SUM(A3:A14) -> 35691.48 | B15: =SUM(B3:B14) -> 27200
A16: SALDO | B16: =A15-B15 -> 8491.48
A20: COTAÇÃO DE MATERIAIS E SERVIÇOS
G23: 1 - Fornecedor | I23: 2 - Fornecedor | K23: 3 - Fornecedor
A24: =+'itens projetos'!A2:L2 -> (DE ARTE ) A COLEÇÃO - COLETÂNEA DE OBRAS DE ARTE DE ARTISTAS BRASILEIROS PRONAC 164867 | G24: ANA ROSA | I24: BNER | K24: COR E TAL
G25: CNPJ: 23.929.865/0001-32 | I25: CNPJ:82.344.425/0001-82 | K25: CNPJ: 10.875.118/0001-17
A26: QTDE | B26: UNI | C26: COD | D26: DESCRIÇÃO DO MATERIAL | G26: V. UNI | H26: V. TOTAL | I26: V. UNI | J26: V. TOTAL | K26: V. UNI | L26: V. TOTAL
A27: 6 | B27: SERVIÇOS | C27: 38 | D27: ASSISTENTE ADMINISTRATIVO | G27: 1500 | H27: =A27*G27 -> 9000 | I27: 1700 | J27: =I27*A27 -> 10200 | K27: 1800 | L27: =K27*A27 -> 10800
H28: =A28*G28 -> 0 | J28: =I28*A28 -> 0 | L28: =K28*A28 -> 0
H29: 0 | J29: 0 | L29: 0
H30: 0 | J30: 0 | L30: 0
H31: 0 | J31: 0 | L31: 0
H32: 0 | J32: 0 | L32: 0
H33: 0 | J33: 0 | L33: 0
H34: 0 | J34: 0 | L34: 0
H35: 0 | J35: 0 | L35: 0
H36: 0 | J36: 0 | L36: 0
H37: 0 | J37: 0 | L37: 0
H38: 0 | J38: 0 | L38: 0
H39: 0 | J39: 0 | L39: 0
H40: 0 | J40: 0 | L40: 0
H41: 0 | J41: 0 | L41: 0
H42: 0 | J42: 0 | L42: 0
H43: 0 | J43: 0 | L43: 0
H44: 0 | J44: 0 | L44: 0
H45: 0 | J45: 0 | L45: 0
H46: 0 | J46: 0 | L46: 0
H47: 0 | J47: 0 | L47: 0
H48: 0 | J48: 0 | L48: 0
H49: 0 | J49: 0 | L49: 0
H50: 0 | J50: 0 | L50: 0
H51: 0 | J51: 0 | L51: 0
H52: 0 | J52: 0 | L52: 0
H53: 0 | J53: 0 | L53: 0
H54: 0 | J54: 0 | L54: 0
H55: 0 | J55: 0 | L55: 0
H56: 0 | J56: 0 | L56: 0
H57: 0 | J57: 0 | L57: 0
H58: 0 | J58: 0 | L58: 0
A59: OBS:. | F59: TOTAIS | G59: =SUM(H27:H58) -> 9000 | I59: =SUM(J27:J58) -> 10200 | K59: =SUM(L27:L58) -> 10800
A61: DATA | G61: APROVADO
A62: 2016-01-04

Sheet 39
A1: =+'itens projetos'!B43 -> Telefone
A2: VERBA | B2: VR. NOTA | C2: N º CHEQUE | D2: DATA DA SAÍDA | E2: DESCRIÇÃO DA SAÍDA | F2: NF | G2: DATA DA NOTA | H2: QTDADE
A3: =+'itens projetos'!H43 -> 840
A15: =SUM(A3:A14) -> 840 | B15: =SUM(B3:B14) -> 0
A16: SALDO | B16: =A15-B15 -> 840
A20: COTAÇÃO DE MATERIAIS E SERVIÇOS
G23: 1 - Fornecedor | I23: 2 - Fornecedor | K23: 3 - Fornecedor
A24: =+'itens projetos'!A2:L2 -> (DE ARTE ) A COLEÇÃO - COLETÂNEA DE OBRAS DE ARTE DE ARTISTAS BRASILEIROS PRONAC 164867 | G24: ANA ROSA | I24: BNER | K24: COR E TAL
G25: CNPJ: 23.929.865/0001-32 | I25: CNPJ:82.344.425/0001-82 | K25: CNPJ: 10.875.118/0001-17
A26: QTDE | B26: UNI | C26: COD | D26: DESCRIÇÃO DO MATERIAL | G26: V. UNI | H26: V. TOTAL | I26: V. UNI | J26: V. TOTAL | K26: V. UNI | L26: V. TOTAL
H27: =A27*G27 -> 0 | J27: =I27*A27 -> 0 | L27: =K27*A27 -> 0
H28: =A28*G28 -> 0 | J28: =I28*A28 -> 0 | L28: =K28*A28 -> 0
H29: 0 | J29: 0 | L29: 0
H30: 0 | J30: 0 | L30: 0
H31: 0 | J31: 0 | L31: 0
H32: 0 | J32: 0 | L32: 0
H33: 0 | J33: 0 | L33: 0
H34: 0 | J34: 0 | L34: 0
H35: 0 | J35: 0 | L35: 0
H36: 0 | J36: 0 | L36: 0
H37: 0 | J37: 0 | L37: 0
H38: 0 | J38: 0 | L38: 0
H39: 0 | J39: 0 | L39: 0
H40: 0 | J40: 0 | L40: 0
H41: 0 | J41: 0 | L41: 0
H42: 0 | J42: 0 | L42: 0
H43: 0 | J43: 0 | L43: 0
H44: 0 | J44: 0 | L44: 0
H45: 0 | J45: 0 | L45: 0
H46: 0 | J46: 0 | L46: 0
H47: 0 | J47: 0 | L47: 0
H48: 0 | J48: 0 | L48: 0
H49: 0 | J49: 0 | L49: 0
H50: 0 | J50: 0 | L50: 0
H51: 0 | J51: 0 | L51: 0
H52: 0 | J52: 0 | L52: 0
H53: 0 | J53: 0 | L53: 0
H54: 0 | J54: 0 | L54: 0
H55: 0 | J55: 0 | L55: 0
H56: 0 | J56: 0 | L56: 0
H57: 0 | J57: 0 | L57: 0
H58: 0 | J58: 0 | L58: 0
A59: OBS:. | F59: TOTAIS | G59: =SUM(H27:H58) -> 0 | I59: =SUM(J27:J58) -> 0 | K59: =SUM(L27:L58) -> 0
A61: DATA | G61: APROVADO
A62: 2016-01-04
